Publisher Label,Publisher URI,"Supplier","Net Amount (£)","Organisational Unit","Merchant Category Code","Purpose","Payment Date"
"Wolverhampton City Council","http://opendatacommunities.org/id/metropolitan-district-council/wolverhampton","TRAXSNAX","3.45","Headstart","5814","Educ Trips, Holidays, Outings, Activity","29/07/2016"
"Wolverhampton City Council","http://opendatacommunities.org/id/metropolitan-district-council/wolverhampton","Amazon UK Marketplace","9.99","Inclusion Support","5942","Books","29/07/2016"
"Wolverhampton City Council","http://opendatacommunities.org/id/metropolitan-district-council/wolverhampton","LONDON MIDLAND TIC","5.00","Headstart","4112","Public Transport","29/07/2016"
"Wolverhampton City Council","http://opendatacommunities.org/id/metropolitan-district-council/wolverhampton","WEST COAST TRAINS","7.60","Art Gallery","4112","Public Transport","29/07/2016"
"Wolverhampton City Council","http://opendatacommunities.org/id/metropolitan-district-council/wolverhampton","PAYPAL  BHA","35.00","Environmental Health - Pub Prot - Gen","8641","Equipment - Purchase","29/07/2016"
"Wolverhampton City Council","http://opendatacommunities.org/id/metropolitan-district-council/wolverhampton","Amazon UK Marketplace","79.99","Education And Access","5942","Equipment - Purchase","29/07/2016"
"Wolverhampton City Council","http://opendatacommunities.org/id/metropolitan-district-council/wolverhampton","TABLE TABLE41027555","22.96","Headstart","5812","Educ Trips, Holidays, Outings, Activity","29/07/2016"
"Wolverhampton City Council","http://opendatacommunities.org/id/metropolitan-district-council/wolverhampton","ASDA HOME SHOPPING","-0.51","Ernest Bold Court","5411","Provisions (Not for resale)","29/07/2016"
"Wolverhampton City Council","http://opendatacommunities.org/id/metropolitan-district-council/wolverhampton","ARGOS RETAIL GROUP","469.99","CIN/CP S17 SW Unit - Area 3B","5310","Furniture","29/07/2016"
"Wolverhampton City Council","http://opendatacommunities.org/id/metropolitan-district-council/wolverhampton","RYMAN","21.28","Intensive Family Support Team","5943","Stationery","29/07/2016"
"Wolverhampton City Council","http://opendatacommunities.org/id/metropolitan-district-council/wolverhampton","VIP BOOKING ApS","433.13","Civic Halls Non Direct Management A/C","7372","Subscriptions","29/07/2016"
"Wolverhampton City Council","http://opendatacommunities.org/id/metropolitan-district-council/wolverhampton","WILKO RETAIL LIMIT","12.05","Service Wide","5722","Equipment - Purchase","29/07/2016"
"Wolverhampton City Council","http://opendatacommunities.org/id/metropolitan-district-council/wolverhampton","WETHERSPOON","24.25","Headstart","5812","Educ Trips, Holidays, Outings, Activity","29/07/2016"
"Wolverhampton City Council","http://opendatacommunities.org/id/metropolitan-district-council/wolverhampton","ASDA HOME SHOPPING","91.08","Ernest Bold Court","5411","Provisions (Not for resale)","29/07/2016"
"Wolverhampton City Council","http://opendatacommunities.org/id/metropolitan-district-council/wolverhampton","HUGHES","416.67","LAC Transitions Team","5732","Client Allowances","29/07/2016"
"Wolverhampton City Council","http://opendatacommunities.org/id/metropolitan-district-council/wolverhampton","ARGOS LTD","265.77","LAC Transitions Team","5310","Client Allowances","29/07/2016"
"Wolverhampton City Council","http://opendatacommunities.org/id/metropolitan-district-council/wolverhampton","JONES SKIP HIRE (WOLVE","176.12","Vulnerable Young Persons Team","7399","Equipment - Purchase","29/07/2016"
"Wolverhampton City Council","http://opendatacommunities.org/id/metropolitan-district-council/wolverhampton","ROYAL CARPETS","250.00","LAC Transitions Team","5713","Client Allowances","29/07/2016"
"Wolverhampton City Council","http://opendatacommunities.org/id/metropolitan-district-council/wolverhampton","VISTAPR VistaPrint.uk","15.23","Inclusion Support","2741","Stationery","29/07/2016"
"Wolverhampton City Council","http://opendatacommunities.org/id/metropolitan-district-council/wolverhampton","REGISTRARS OFFICE","10.00","Adoption and Residence Team & Allowances","8299","Training Expenses","29/07/2016"
"Wolverhampton City Council","http://opendatacommunities.org/id/metropolitan-district-council/wolverhampton","CORAM ACADEMY LTD","40.00","Fostering Team & Allowances","8398","Services - Supplies & Services to users","29/07/2016"
"Wolverhampton City Council","http://opendatacommunities.org/id/metropolitan-district-council/wolverhampton","ARGOS RETAIL GROUP","10.94","CIN/CP S17 SW Unit - Area 3B","5310","Furniture","29/07/2016"
"Wolverhampton City Council","http://opendatacommunities.org/id/metropolitan-district-council/wolverhampton","FTPE WEBTIS 1","215.10","LAC Transitions Team","4112","Client Allowances","29/07/2016"
"Wolverhampton City Council","http://opendatacommunities.org/id/metropolitan-district-council/wolverhampton","ARGOS RETAIL GROUP","249.99","Box Office Administration","5310","Equipment - Purchase","29/07/2016"
"Wolverhampton City Council","http://opendatacommunities.org/id/metropolitan-district-council/wolverhampton","ROBOTSHOP.COM","66.63","Learning Technologies","5732","Computing - Purchase of Hardware","28/07/2016"
"Wolverhampton City Council","http://opendatacommunities.org/id/metropolitan-district-council/wolverhampton","SAIN ST MARKS","300.00","Childrens with Disabilities Team","6011","Financial Assistance In Exceptional Circ","28/07/2016"
"Wolverhampton City Council","http://opendatacommunities.org/id/metropolitan-district-council/wolverhampton","TRAINLINE","17.90","LAC Transitions Team","4112","Client Allowances","28/07/2016"
"Wolverhampton City Council","http://opendatacommunities.org/id/metropolitan-district-council/wolverhampton","SAMRA'S","2.48","Employment Programmes","5411","Provisions (Not for resale)","28/07/2016"
"Wolverhampton City Council","http://opendatacommunities.org/id/metropolitan-district-council/wolverhampton","S&D SUPERMARKET WOLVER","19.59","Employment Programmes","5411","Provisions (Not for resale)","28/07/2016"
"Wolverhampton City Council","http://opendatacommunities.org/id/metropolitan-district-council/wolverhampton","DINING ROOM","5.00","Headstart","8220","Training Expenses","28/07/2016"
"Wolverhampton City Council","http://opendatacommunities.org/id/metropolitan-district-council/wolverhampton","WEST COAST TRAINS","142.20","Eduction Business Partnership","4112","Public Transport","28/07/2016"
"Wolverhampton City Council","http://opendatacommunities.org/id/metropolitan-district-council/wolverhampton","UNTOUCHABLES","55.83","Cemeteries","5231","Materials","28/07/2016"
"Wolverhampton City Council","http://opendatacommunities.org/id/metropolitan-district-council/wolverhampton","SAINSBURYS (2340)","76.80","Childrens with Disabilities Team","5411","Provisions (Not for resale)","28/07/2016"
"Wolverhampton City Council","http://opendatacommunities.org/id/metropolitan-district-council/wolverhampton","WM MORRISON 024","3.64","EIP Locality 3","5411","Provisions (Not for resale)","28/07/2016"
"Wolverhampton City Council","http://opendatacommunities.org/id/metropolitan-district-council/wolverhampton","THE POST OFFICE","55.75","LAC Team","9402","Financial Assistance In Exceptional Circ","28/07/2016"
"Wolverhampton City Council","http://opendatacommunities.org/id/metropolitan-district-council/wolverhampton","TRAINLINE","120.05","Adoption and Residence Team & Allowances","4112","Public Transport","28/07/2016"
"Wolverhampton City Council","http://opendatacommunities.org/id/metropolitan-district-council/wolverhampton","Amazon UK Marketplace","22.33","Towers Outdoor Education Centre","5942","Fixtures and Fittings - Purchases","28/07/2016"
"Wolverhampton City Council","http://opendatacommunities.org/id/metropolitan-district-council/wolverhampton","ARGOS LTD","364.62","CIN/CP S17 SW Unit - Area 4","5310","No Recourse to Public Funds","28/07/2016"
"Wolverhampton City Council","http://opendatacommunities.org/id/metropolitan-district-council/wolverhampton","BIKEABILITY MATERIALS","919.97","Cycling Schemes - Bikeability","5940","Equipment - Purchase","28/07/2016"
"Wolverhampton City Council","http://opendatacommunities.org/id/metropolitan-district-council/wolverhampton","ROYAL MAIL  0845606040","1.50","LAC Transitions Team","9402","Comms - Postage","28/07/2016"
"Wolverhampton City Council","http://opendatacommunities.org/id/metropolitan-district-council/wolverhampton","B&M RETAIL","58.32","LAC Transitions Team","5310","Client Allowances","28/07/2016"
"Wolverhampton City Council","http://opendatacommunities.org/id/metropolitan-district-council/wolverhampton","WWW.SEVERNTRENTSEARCHE","290.00","Disposal Costs","4900","Services - Professional Fees","28/07/2016"
"Wolverhampton City Council","http://opendatacommunities.org/id/metropolitan-district-council/wolverhampton","Virgintrains.co.uk","181.40","Adoption and Residence Team & Allowances","4112","Public Transport","28/07/2016"
"Wolverhampton City Council","http://opendatacommunities.org/id/metropolitan-district-council/wolverhampton","CARVER/WOLVERHAMPTON/L","16.34","Wholesale Market Facilities Management","5211","Cleaning Supplies and Materials","28/07/2016"
"Wolverhampton City Council","http://opendatacommunities.org/id/metropolitan-district-council/wolverhampton","CENTURY ELECTRICAL WHO","40.00","Public Conveniences","5065","R&M - Departmental planned (external)","28/07/2016"
"Wolverhampton City Council","http://opendatacommunities.org/id/metropolitan-district-council/wolverhampton","EE","8.33","Telecare","4814","Comms - Telephone Call charges","27/07/2016"
"Wolverhampton City Council","http://opendatacommunities.org/id/metropolitan-district-council/wolverhampton","Amazon EU","-7.99","EIP Locality 1","5969","Equipment - Purchase","27/07/2016"
"Wolverhampton City Council","http://opendatacommunities.org/id/metropolitan-district-council/wolverhampton","Amazon EU","14.66","EIP Locality 1","5969","Equipment - Purchase","27/07/2016"
"Wolverhampton City Council","http://opendatacommunities.org/id/metropolitan-district-council/wolverhampton","COSTA COFFEE","5.45","Headstart","5814","Educ Trips, Holidays, Outings, Activity","27/07/2016"
"Wolverhampton City Council","http://opendatacommunities.org/id/metropolitan-district-council/wolverhampton","POST OFFICE COUNTER","515.00","Adoption and Residence Team & Allowances","9402","Comms - Postage","27/07/2016"
"Wolverhampton City Council","http://opendatacommunities.org/id/metropolitan-district-council/wolverhampton","WWWPISUPPLYCOM","357.00","Learning Technologies","5732","Computing - Purchase of Hardware","27/07/2016"
"Wolverhampton City Council","http://opendatacommunities.org/id/metropolitan-district-council/wolverhampton","ARGOS LTD","6.99","CIN/CP S17 SW Unit - Area 3B","5310","Equipment - Purchase","27/07/2016"
"Wolverhampton City Council","http://opendatacommunities.org/id/metropolitan-district-council/wolverhampton","Amazon UK Marketplace","69.26","Blakenhall Commty & Healthy Living Ctr","5942","Provisions (Resale)","27/07/2016"
"Wolverhampton City Council","http://opendatacommunities.org/id/metropolitan-district-council/wolverhampton","SCREWFIX DIRECT","39.13","Telecare","5211","Materials","27/07/2016"
"Wolverhampton City Council","http://opendatacommunities.org/id/metropolitan-district-council/wolverhampton","PP 2STROKE","120.00","Street Lighting Maintenance","8999","Services - Professional Fees","27/07/2016"
"Wolverhampton City Council","http://opendatacommunities.org/id/metropolitan-district-council/wolverhampton","SMYTHS TOYS","235.27","Children & Family Contact Services","5945","Equipment - Purchase","27/07/2016"
"Wolverhampton City Council","http://opendatacommunities.org/id/metropolitan-district-council/wolverhampton","FlybeEQ0W EQ0W8X","106.49","Headstart","4511","Public Transport","27/07/2016"
"Wolverhampton City Council","http://opendatacommunities.org/id/metropolitan-district-council/wolverhampton","POST OFFICE COUNTER","183.00","Safeguarding Admin Resource","9402","Comms - Postage","27/07/2016"
"Wolverhampton City Council","http://opendatacommunities.org/id/metropolitan-district-council/wolverhampton","WEST MID TRAVEL","-0.08","Planning","4131","Public Transport","27/07/2016"
"Wolverhampton City Council","http://opendatacommunities.org/id/metropolitan-district-council/wolverhampton","Amazon EU","14.66","EIP Locality 1","5969","Equipment - Purchase","27/07/2016"
"Wolverhampton City Council","http://opendatacommunities.org/id/metropolitan-district-council/wolverhampton","DVSA MOT COMP 2","153.75","Fleet Management","9399","Equipment - Purchase","27/07/2016"
"Wolverhampton City Council","http://opendatacommunities.org/id/metropolitan-district-council/wolverhampton","GRO HM PASSPORT OFFICE","23.40","Head of Service - CINCP","9399","Services - Professional Fees","27/07/2016"
"Wolverhampton City Council","http://opendatacommunities.org/id/metropolitan-district-council/wolverhampton","PITCHCARE ONLINE","327.85","Aldersley Leisure Village","5261","Equipment - Purchase","27/07/2016"
"Wolverhampton City Council","http://opendatacommunities.org/id/metropolitan-district-council/wolverhampton","S & B WASTE","166.50","Old Hall Street Main","4900","Grounds Maintenance - Non Contract","27/07/2016"
"Wolverhampton City Council","http://opendatacommunities.org/id/metropolitan-district-council/wolverhampton","WILKO RETAIL LIMIT","6.95","Old Hall Street Main","5722","Equipment - Purchase","27/07/2016"
"Wolverhampton City Council","http://opendatacommunities.org/id/metropolitan-district-council/wolverhampton","POST OFFICE COUNTER","55.75","LAC Team","9402","Financial Assistance In Exceptional Circ","27/07/2016"
"Wolverhampton City Council","http://opendatacommunities.org/id/metropolitan-district-council/wolverhampton","AIR SPACE WOLVERHA","245.00","EIP Locality 8","7929","Educ Trips, Holidays, Outings, Activity","27/07/2016"
"Wolverhampton City Council","http://opendatacommunities.org/id/metropolitan-district-council/wolverhampton","ALDI","-24.99","Children & Family Contact Services","5411","Provisions (Not for resale)","27/07/2016"
"Wolverhampton City Council","http://opendatacommunities.org/id/metropolitan-district-council/wolverhampton","ALDI","88.62","Children & Family Contact Services","5411","Provisions (Not for resale)","27/07/2016"
"Wolverhampton City Council","http://opendatacommunities.org/id/metropolitan-district-council/wolverhampton","BIRMINGHAM","53.17","EIP Locality 8","7991","Educ Trips, Holidays, Outings, Activity","27/07/2016"
"Wolverhampton City Council","http://opendatacommunities.org/id/metropolitan-district-council/wolverhampton","Amazon UK Marketplace","29.98","Bilston Museum","5942","Equipment - Purchase","27/07/2016"
"Wolverhampton City Council","http://opendatacommunities.org/id/metropolitan-district-council/wolverhampton","Amazon UK Marketplace","11.98","EIP Locality 1","5942","Equipment - Purchase","27/07/2016"
"Wolverhampton City Council","http://opendatacommunities.org/id/metropolitan-district-council/wolverhampton","LOYD WEDNESFIELD WOLVE","70.00","EIP Locality 8","6011","Educ Trips, Holidays, Outings, Activity","27/07/2016"
"Wolverhampton City Council","http://opendatacommunities.org/id/metropolitan-district-council/wolverhampton","EBUYER (UK) LTD","80.96","Macmillan Welfare Rights","5722","Equipment - Purchase","27/07/2016"
"Wolverhampton City Council","http://opendatacommunities.org/id/metropolitan-district-council/wolverhampton","SEVERN TRENT WATER","108.01","CIN/CP S17 SW Unit - Area 4","4900","No Recourse to Public Funds","27/07/2016"
"Wolverhampton City Council","http://opendatacommunities.org/id/metropolitan-district-council/wolverhampton","AMAZON UK RETAIL AMAZO","8.99","Headstart","5999","Equipment - Purchase","27/07/2016"
"Wolverhampton City Council","http://opendatacommunities.org/id/metropolitan-district-council/wolverhampton","Amazon UK Marketplace","8.97","Bilston Museum","5942","Equipment - Purchase","26/07/2016"
"Wolverhampton City Council","http://opendatacommunities.org/id/metropolitan-district-council/wolverhampton","REDWINGS LODGE","41.62","Emergency Duty Team","7011","Services - Supplies & Services to users","26/07/2016"
"Wolverhampton City Council","http://opendatacommunities.org/id/metropolitan-district-council/wolverhampton","MAPLIN 268","8.32","Emergency Duty Team","5732","Equipment - Purchase","26/07/2016"
"Wolverhampton City Council","http://opendatacommunities.org/id/metropolitan-district-council/wolverhampton","EDREAMS","160.57","Members Expenses","4722","Public Transport","26/07/2016"
"Wolverhampton City Council","http://opendatacommunities.org/id/metropolitan-district-council/wolverhampton","PANDA PRESS (STONE) LT","105.00","Bilston Museum","2741","Publications","26/07/2016"
"Wolverhampton City Council","http://opendatacommunities.org/id/metropolitan-district-council/wolverhampton","CARVER/WOLVERHAMPTON/L","59.37","Northicote Farm","5211","Materials","26/07/2016"
"Wolverhampton City Council","http://opendatacommunities.org/id/metropolitan-district-council/wolverhampton","HOME BARGAINS","4.47","CIN/CP S17 SW Unit - Area 7","5251","Equipment - Purchase","26/07/2016"
"Wolverhampton City Council","http://opendatacommunities.org/id/metropolitan-district-council/wolverhampton","REDWINGS LODGE","62.46","Emergency Duty Team","7011","Services - Supplies & Services to users","26/07/2016"
"Wolverhampton City Council","http://opendatacommunities.org/id/metropolitan-district-council/wolverhampton","MONKEYOFFICE.CO.UK","30.36","Private Sector Housing","5943","Stationery","26/07/2016"
"Wolverhampton City Council","http://opendatacommunities.org/id/metropolitan-district-council/wolverhampton","THE POST OFFICE","12.90","CIN/CP S17 SW Unit - Area 3B","9402","Comms - Postage","26/07/2016"
"Wolverhampton City Council","http://opendatacommunities.org/id/metropolitan-district-council/wolverhampton","Amazon UK Marketplace","5.57","Bilston Museum","5942","Equipment - Purchase","26/07/2016"
"Wolverhampton City Council","http://opendatacommunities.org/id/metropolitan-district-council/wolverhampton","Amazon EU","6.66","EIP Locality 1","5969","Equipment - Purchase","26/07/2016"
"Wolverhampton City Council","http://opendatacommunities.org/id/metropolitan-district-council/wolverhampton","POST OFFICE COUNTER","128.00","Fostering Team & Allowances","9402","Comms - Postage","26/07/2016"
"Wolverhampton City Council","http://opendatacommunities.org/id/metropolitan-district-council/wolverhampton","TRAINLINE","397.70","Adoption and Residence Team & Allowances","4112","Public Transport","26/07/2016"
"Wolverhampton City Council","http://opendatacommunities.org/id/metropolitan-district-council/wolverhampton","BARCLAYS BANK PLC","240.00","CIN/CP S17 SW Unit - Area 5","6011","Financial Assistance In Exceptional Circ","26/07/2016"
"Wolverhampton City Council","http://opendatacommunities.org/id/metropolitan-district-council/wolverhampton","Amazon UK Marketplace","332.39","Headstart","5942","Books","26/07/2016"
"Wolverhampton City Council","http://opendatacommunities.org/id/metropolitan-district-council/wolverhampton","WWW.CII.CO.UK","128.00","Central Training","8699","Training Expenses","26/07/2016"
"Wolverhampton City Council","http://opendatacommunities.org/id/metropolitan-district-council/wolverhampton","JESSOPS","770.00","Queen St Townscape Heritage (HLF)","5946","Equipment - Purchase","26/07/2016"
"Wolverhampton City Council","http://opendatacommunities.org/id/metropolitan-district-council/wolverhampton","Amazon UK Marketplace","9.53","Bert Williams Leisure Centre","5942","Equipment - Purchase","26/07/2016"
"Wolverhampton City Council","http://opendatacommunities.org/id/metropolitan-district-council/wolverhampton","Amazon UK Marketplace","3.48","EIP Locality 1","5942","Equipment - Purchase","26/07/2016"
"Wolverhampton City Council","http://opendatacommunities.org/id/metropolitan-district-council/wolverhampton","Amazon UK Marketplace","8.00","Global Budgets","5942","Books","26/07/2016"
"Wolverhampton City Council","http://opendatacommunities.org/id/metropolitan-district-council/wolverhampton","ARGOS LTD","24.98","Revenues","5310","Equipment - Purchase","26/07/2016"
"Wolverhampton City Council","http://opendatacommunities.org/id/metropolitan-district-council/wolverhampton","Amazon UK Marketplace","36.00","Headstart","5942","Books","26/07/2016"
"Wolverhampton City Council","http://opendatacommunities.org/id/metropolitan-district-council/wolverhampton","Amazon UK Marketplace","145.84","Headstart","5942","Books","26/07/2016"
"Wolverhampton City Council","http://opendatacommunities.org/id/metropolitan-district-council/wolverhampton","Amazon UK Marketplace","6.99","Headstart","5942","Books","26/07/2016"
"Wolverhampton City Council","http://opendatacommunities.org/id/metropolitan-district-council/wolverhampton","BCC REGISTER OFFIC","15.00","LAC Team","9399","Financial Assistance In Exceptional Circ","26/07/2016"
"Wolverhampton City Council","http://opendatacommunities.org/id/metropolitan-district-council/wolverhampton","TRAINLINE","62.93","Safeguarding Admin Resource","4112","Public Transport","26/07/2016"
"Wolverhampton City Council","http://opendatacommunities.org/id/metropolitan-district-council/wolverhampton","WIRE FM","1946.00","Art Gallery","7311","Marketing \ Non-staff advertising","25/07/2016"
"Wolverhampton City Council","http://opendatacommunities.org/id/metropolitan-district-council/wolverhampton","SPAR SIOP TANDDERWEN","351.20","Towers Outdoor Education Centre","5411","Provisions (Not for resale)","25/07/2016"
"Wolverhampton City Council","http://opendatacommunities.org/id/metropolitan-district-council/wolverhampton","ARGOS RETAIL GROUP","83.94","LAC Admin Team","5310","Equipment - Purchase","25/07/2016"
"Wolverhampton City Council","http://opendatacommunities.org/id/metropolitan-district-council/wolverhampton","ASDA HOME SHOPPING","0.21","Ernest Bold Court","5411","Provisions (Not for resale)","25/07/2016"
"Wolverhampton City Council","http://opendatacommunities.org/id/metropolitan-district-council/wolverhampton","Amazon UK Marketplace","56.85","Headstart","5942","Books","25/07/2016"
"Wolverhampton City Council","http://opendatacommunities.org/id/metropolitan-district-council/wolverhampton","B&M RETAIL","43.96","Headstart","5310","Equipment - Purchase","25/07/2016"
"Wolverhampton City Council","http://opendatacommunities.org/id/metropolitan-district-council/wolverhampton","VIRGIN MEDIA PYMTS","115.20","Civic Halls Non Direct Management A/C","4814","Comms - Telephone Call charges","25/07/2016"
"Wolverhampton City Council","http://opendatacommunities.org/id/metropolitan-district-council/wolverhampton","O E METCALFE","426.88","Towers Outdoor Education Centre","5499","Catering","25/07/2016"
"Wolverhampton City Council","http://opendatacommunities.org/id/metropolitan-district-council/wolverhampton","Amazon UK Marketplace","150.29","Headstart","5942","Books","25/07/2016"
"Wolverhampton City Council","http://opendatacommunities.org/id/metropolitan-district-council/wolverhampton","Amazon UK Marketplace","21.97","Headstart","5942","Books","25/07/2016"
"Wolverhampton City Council","http://opendatacommunities.org/id/metropolitan-district-council/wolverhampton","SAINSBURYS (2340)","6.35","EIP Locality 3","5411","Equipment - Purchase","25/07/2016"
"Wolverhampton City Council","http://opendatacommunities.org/id/metropolitan-district-council/wolverhampton","WWW.THOMANN.DE","444.98","Bantock House Museum","5733","Equipment - Purchase","25/07/2016"
"Wolverhampton City Council","http://opendatacommunities.org/id/metropolitan-district-council/wolverhampton","WM MORRISONS","8.33","Safeguarding Admin Resource","5411","Equipment - Purchase","25/07/2016"
"Wolverhampton City Council","http://opendatacommunities.org/id/metropolitan-district-council/wolverhampton","Amazon UK Marketplace","89.00","Headstart","5942","Books","25/07/2016"
"Wolverhampton City Council","http://opendatacommunities.org/id/metropolitan-district-council/wolverhampton","THE NEW BRIDGE GUEST H","80.00","Emergency Duty Team","7011","Services - Supplies & Services to users","25/07/2016"
"Wolverhampton City Council","http://opendatacommunities.org/id/metropolitan-district-council/wolverhampton","WWW.WESTMINSTER-BRIEFI","215.00","Youth Offending Team","8244","Training Expenses","25/07/2016"
"Wolverhampton City Council","http://opendatacommunities.org/id/metropolitan-district-council/wolverhampton","CURRYS S/S","253.78","Children & Family Contact Services","5732","Equipment - Purchase","25/07/2016"
"Wolverhampton City Council","http://opendatacommunities.org/id/metropolitan-district-council/wolverhampton","FTPE WEBTIS 1","32.00","LAC Transitions Team","4112","Client Allowances","25/07/2016"
"Wolverhampton City Council","http://opendatacommunities.org/id/metropolitan-district-council/wolverhampton","Amazon UK Marketplace","43.39","Headstart","5942","Books","25/07/2016"
"Wolverhampton City Council","http://opendatacommunities.org/id/metropolitan-district-council/wolverhampton","INTERNATIONAL HOUSE LO","160.00","Discretionary Fund","8220","Training Expenses","25/07/2016"
"Wolverhampton City Council","http://opendatacommunities.org/id/metropolitan-district-council/wolverhampton","WILKO RETAIL LIMIT","40.75","Old Hall Street Main","5722","Equipment - Purchase","25/07/2016"
"Wolverhampton City Council","http://opendatacommunities.org/id/metropolitan-district-council/wolverhampton","TVLICENSING.CO.UK","145.50","LAC Transitions Team","7392","Client Allowances","25/07/2016"
"Wolverhampton City Council","http://opendatacommunities.org/id/metropolitan-district-council/wolverhampton","Amazon UK Marketplace","1.66","Bert Williams Leisure Centre","5942","Equipment - Purchase","25/07/2016"
"Wolverhampton City Council","http://opendatacommunities.org/id/metropolitan-district-council/wolverhampton","TESCO PFS 2185","4.83","Northicote Farm","5541","Petrol","25/07/2016"
"Wolverhampton City Council","http://opendatacommunities.org/id/metropolitan-district-council/wolverhampton","SPAR SIOP TANDDERWEN","344.32","Towers Outdoor Education Centre","5411","Provisions (Not for resale)","25/07/2016"
"Wolverhampton City Council","http://opendatacommunities.org/id/metropolitan-district-council/wolverhampton","TESCO STORE 2836","9.43","Towers Outdoor Education Centre","5411","Provisions (Not for resale)","25/07/2016"
"Wolverhampton City Council","http://opendatacommunities.org/id/metropolitan-district-council/wolverhampton","PURE360","672.00","Civic Halls Non Direct Management A/C","7372","Marketing \ Non-staff advertising","25/07/2016"
"Wolverhampton City Council","http://opendatacommunities.org/id/metropolitan-district-council/wolverhampton","NOVOTEL HOTELS","74.17","Mayoral Expenses","3642","Accommodation Costs","25/07/2016"
"Wolverhampton City Council","http://opendatacommunities.org/id/metropolitan-district-council/wolverhampton","THE NEW BRIDGE GUEST H","40.00","Emergency Duty Team","7011","Services - Supplies & Services to users","25/07/2016"
"Wolverhampton City Council","http://opendatacommunities.org/id/metropolitan-district-council/wolverhampton","FACEBK 4UYDV8NB92","596.47","Communications & Marketing - General","7311","Marketing \ Non-staff advertising","25/07/2016"
"Wolverhampton City Council","http://opendatacommunities.org/id/metropolitan-district-council/wolverhampton","Amazon UK Marketplace","19.79","Headstart","5942","Books","25/07/2016"
"Wolverhampton City Council","http://opendatacommunities.org/id/metropolitan-district-council/wolverhampton","SAIN WEDNESFIELD","100.00","Duke Street Bungalows","6011","Public Transport","25/07/2016"
"Wolverhampton City Council","http://opendatacommunities.org/id/metropolitan-district-council/wolverhampton","WM MORRISONS","8.33","Safeguarding Admin Resource","5411","Equipment - Hire","25/07/2016"
"Wolverhampton City Council","http://opendatacommunities.org/id/metropolitan-district-council/wolverhampton","VIRGIN MEDIA PYMTS","216.00","Civic Halls Non Direct Management A/C","4814","Comms - Telephone Call charges","25/07/2016"
"Wolverhampton City Council","http://opendatacommunities.org/id/metropolitan-district-council/wolverhampton","Amazon UK Marketplace","83.94","Upper Pendeford Farm Childrens Home","5942","Equipment - Purchase","25/07/2016"
"Wolverhampton City Council","http://opendatacommunities.org/id/metropolitan-district-council/wolverhampton","BT BILL PAYMENT 1","290.66","Art Gallery","4812","Comms - Telephone Call charges","25/07/2016"
"Wolverhampton City Council","http://opendatacommunities.org/id/metropolitan-district-council/wolverhampton","ARGOS LTD","30.04","Strategic Director Place","5310","Equipment - Purchase","25/07/2016"
"Wolverhampton City Council","http://opendatacommunities.org/id/metropolitan-district-council/wolverhampton","MAILCHIMP","38.62","City Direct","7399","Equipment - Purchase","25/07/2016"
"Wolverhampton City Council","http://opendatacommunities.org/id/metropolitan-district-council/wolverhampton","ASDA HOME SHOPPING","99.88","Ernest Bold Court","5411","Provisions (Not for resale)","25/07/2016"
"Wolverhampton City Council","http://opendatacommunities.org/id/metropolitan-district-council/wolverhampton","123RF.COM","30.00","Art Gallery","7333","Marketing \ Non-staff advertising","25/07/2016"
"Wolverhampton City Council","http://opendatacommunities.org/id/metropolitan-district-council/wolverhampton","FACEBK 5UYDV8NB92","3.69","Communications & Marketing - General","7311","Marketing \ Non-staff advertising","25/07/2016"
"Wolverhampton City Council","http://opendatacommunities.org/id/metropolitan-district-council/wolverhampton","Amazon EU","13.92","Upper Pendeford Farm Childrens Home","5969","Equipment - Purchase","25/07/2016"
"Wolverhampton City Council","http://opendatacommunities.org/id/metropolitan-district-council/wolverhampton","Amazon UK Marketplace","3.89","Headstart","5942","Books","25/07/2016"
"Wolverhampton City Council","http://opendatacommunities.org/id/metropolitan-district-council/wolverhampton","LICENSING SERVICES","23.00","Aldersley Leisure Village","9399","Services - General Licences","25/07/2016"
"Wolverhampton City Council","http://opendatacommunities.org/id/metropolitan-district-council/wolverhampton","SPECSAVERSEVOUGB-","1700.00","Eye Test Vouchers (HR)","8043","Medical Fees","25/07/2016"
"Wolverhampton City Council","http://opendatacommunities.org/id/metropolitan-district-council/wolverhampton","BCC REGISTER OFFIC","15.00","LAC Team","9399","Financial Assistance In Exceptional Circ","22/07/2016"
"Wolverhampton City Council","http://opendatacommunities.org/id/metropolitan-district-council/wolverhampton","ARGOS RETAIL GROUP","102.81","LAC Transitions Team","5310","Client Allowances","22/07/2016"
"Wolverhampton City Council","http://opendatacommunities.org/id/metropolitan-district-council/wolverhampton","NOTEMACHINE","250.00","CIN/CP S17 SW Unit - Area 6","6011","Financial Assistance In Exceptional Circ","22/07/2016"
"Wolverhampton City Council","http://opendatacommunities.org/id/metropolitan-district-council/wolverhampton","ASDA SUPERSTORE","30.00","CIN/CP S17 SW Unit - Area 1","5411","Provisions (Not for resale)","22/07/2016"
"Wolverhampton City Council","http://opendatacommunities.org/id/metropolitan-district-council/wolverhampton","POST OFFICE COUNTER","52.20","CIN/CP S17 SW Unit - Area 1","9402","Comms - Postage","22/07/2016"
"Wolverhampton City Council","http://opendatacommunities.org/id/metropolitan-district-council/wolverhampton","NATWEST BANK","250.00","CIN/CP S17 SW Unit - Area 5","6011","Financial Assistance In Exceptional Circ","22/07/2016"
"Wolverhampton City Council","http://opendatacommunities.org/id/metropolitan-district-council/wolverhampton","B & Q 1243","97.37","Caretakers Community Centre","5211","R&M - Departmental planned (external)","22/07/2016"
"Wolverhampton City Council","http://opendatacommunities.org/id/metropolitan-district-council/wolverhampton","SPORTSDIRECT 231","50.00","Education Catering - General Overheads","5941","Equipment - Purchase","22/07/2016"
"Wolverhampton City Council","http://opendatacommunities.org/id/metropolitan-district-council/wolverhampton","REGISTRARS OFFICE","90.00","Head of Service - CINCP","8299","Services - Professional Fees","22/07/2016"
"Wolverhampton City Council","http://opendatacommunities.org/id/metropolitan-district-council/wolverhampton","WWW.REDWINGSLODGEB","274.71","CIN/CP S17 SW Unit - Area 3A","7011","Accommodation Costs","22/07/2016"
"Wolverhampton City Council","http://opendatacommunities.org/id/metropolitan-district-council/wolverhampton","WEST MID TRAVEL","182.28","Business Manager - Place","4131","Public Transport","22/07/2016"
"Wolverhampton City Council","http://opendatacommunities.org/id/metropolitan-district-council/wolverhampton","Amazon EU","12.22","Parent / Partnership Service","5969","Equipment - Purchase","22/07/2016"
"Wolverhampton City Council","http://opendatacommunities.org/id/metropolitan-district-council/wolverhampton","WM MORRISONS","10.00","Education Catering - General Overheads","5411","Provisions (Not for resale)","22/07/2016"
"Wolverhampton City Council","http://opendatacommunities.org/id/metropolitan-district-council/wolverhampton","PC WORLD","59.98","Customer Services","5732","Equipment - Purchase","22/07/2016"
"Wolverhampton City Council","http://opendatacommunities.org/id/metropolitan-district-council/wolverhampton","CENTURY ELECTRICAL WHO","25.00","Public Conveniences","5065","R&M - Departmental planned (external)","22/07/2016"
"Wolverhampton City Council","http://opendatacommunities.org/id/metropolitan-district-council/wolverhampton","CARVER/WOLVERHAMPTON/L","5.29","Public Conveniences","5211","R&M - Departmental planned (external)","22/07/2016"
"Wolverhampton City Council","http://opendatacommunities.org/id/metropolitan-district-council/wolverhampton","SAINSBURYS SACAT 2040","7.60","Duke Street Bungalows","5411","Provisions (Not for resale)","22/07/2016"
"Wolverhampton City Council","http://opendatacommunities.org/id/metropolitan-district-council/wolverhampton","STERMAT CAR AND VAN HI","1477.10","Towers Outdoor Education Centre","5521","Hire of Vehicles","22/07/2016"
"Wolverhampton City Council","http://opendatacommunities.org/id/metropolitan-district-council/wolverhampton","ASDA SUPERSTORE","20.63","Community Enablement","5411","Provisions (Not for resale)","22/07/2016"
"Wolverhampton City Council","http://opendatacommunities.org/id/metropolitan-district-council/wolverhampton","WEST COAST TRAINS","52.20","Mental Health Assessment & Care Mgmt","4112","Public Transport","22/07/2016"
"Wolverhampton City Council","http://opendatacommunities.org/id/metropolitan-district-council/wolverhampton","REGISTRARS OFFICE","21.00","Childrens with Disabilities Team","8299","Services - Fees and Charges","22/07/2016"
"Wolverhampton City Council","http://opendatacommunities.org/id/metropolitan-district-council/wolverhampton","NATWEST BANK","250.00","CIN/CP S17 SW Unit - Area 5","6011","Financial Assistance In Exceptional Circ","22/07/2016"
"Wolverhampton City Council","http://opendatacommunities.org/id/metropolitan-district-council/wolverhampton","EE & T-MOBILE","213.65","Civic Halls Non Direct Management A/C","4814","Comms - Telephone Call charges","22/07/2016"
"Wolverhampton City Council","http://opendatacommunities.org/id/metropolitan-district-council/wolverhampton","HOMEBASE LTD 103","6.64","Customer Services","5211","Materials","22/07/2016"
"Wolverhampton City Council","http://opendatacommunities.org/id/metropolitan-district-council/wolverhampton","WATERSTONES.COM","328.00","Workforce Development","5942","Books","22/07/2016"
"Wolverhampton City Council","http://opendatacommunities.org/id/metropolitan-district-council/wolverhampton","TRAINLINE","16.07","Archives","4112","Public Transport","22/07/2016"
"Wolverhampton City Council","http://opendatacommunities.org/id/metropolitan-district-council/wolverhampton","Virgintrains.co.uk","11.40","Fostering Team & Allowances","4112","Public Transport","22/07/2016"
"Wolverhampton City Council","http://opendatacommunities.org/id/metropolitan-district-council/wolverhampton","B & Q 1243","6.53","Learning Disabilities Management","5211","Equipment - R & M","22/07/2016"
"Wolverhampton City Council","http://opendatacommunities.org/id/metropolitan-district-council/wolverhampton","ARGOS LTD","237.49","Independent Living Service","5310","Equipment - Purchase","21/07/2016"
"Wolverhampton City Council","http://opendatacommunities.org/id/metropolitan-district-council/wolverhampton","TRAINLINE","226.95","Licensing - H.Carriage/Pr.Hire Vehicles","4112","Public Transport","21/07/2016"
"Wolverhampton City Council","http://opendatacommunities.org/id/metropolitan-district-council/wolverhampton","NOTEMACHINE","40.00","Community Enablement","6011","Provisions (Not for resale)","21/07/2016"
"Wolverhampton City Council","http://opendatacommunities.org/id/metropolitan-district-council/wolverhampton","ASDA HOME SHOPPING","233.38","Upper Pendeford Farm Childrens Home","5411","Provisions (Not for resale)","21/07/2016"
"Wolverhampton City Council","http://opendatacommunities.org/id/metropolitan-district-council/wolverhampton","TESCO STORES 5194","94.26","Towers Outdoor Education Centre","5411","Provisions (Not for resale)","21/07/2016"
"Wolverhampton City Council","http://opendatacommunities.org/id/metropolitan-district-council/wolverhampton","JONES SKIP HIRE (WOLVE","119.14","Vulnerable Young Persons Team","7399","Equipment - Purchase","21/07/2016"
"Wolverhampton City Council","http://opendatacommunities.org/id/metropolitan-district-council/wolverhampton","THE NEW BRIDGE GUEST H","45.00","Emergency Duty Team","7011","Services - Supplies & Services to users","21/07/2016"
"Wolverhampton City Council","http://opendatacommunities.org/id/metropolitan-district-council/wolverhampton","STERMAT CAR AND VAN HI","940.00","Towers Outdoor Education Centre","5521","Vehicle Maintenance - Repairs","21/07/2016"
"Wolverhampton City Council","http://opendatacommunities.org/id/metropolitan-district-council/wolverhampton","MAPLIN 268","5.00","Emergency Duty Team","5732","Equipment - Purchase","21/07/2016"
"Wolverhampton City Council","http://opendatacommunities.org/id/metropolitan-district-council/wolverhampton","ESPO","88.00","Education And Access","9399","Equipment - Purchase","21/07/2016"
"Wolverhampton City Council","http://opendatacommunities.org/id/metropolitan-district-council/wolverhampton","AMAZON UK RETAIL AMAZO","57.49","Upper Pendeford Farm Childrens Home","5999","Equipment - Purchase","21/07/2016"
"Wolverhampton City Council","http://opendatacommunities.org/id/metropolitan-district-council/wolverhampton","123-REG.CO.UK","34.95","Technical Support","4816","Computing - Purchase of Software","21/07/2016"
"Wolverhampton City Council","http://opendatacommunities.org/id/metropolitan-district-council/wolverhampton","FUEL CARD SERVICES LTD","472.12","Towers Outdoor Education Centre","7399","Petrol","21/07/2016"
"Wolverhampton City Council","http://opendatacommunities.org/id/metropolitan-district-council/wolverhampton","Virgintrains.co.uk","182.00","Fostering Team & Allowances","4112","Public Transport","21/07/2016"
"Wolverhampton City Council","http://opendatacommunities.org/id/metropolitan-district-council/wolverhampton","Amazon EU","81.71","Parking Enforcement","5969","Equipment - Purchase","21/07/2016"
"Wolverhampton City Council","http://opendatacommunities.org/id/metropolitan-district-council/wolverhampton","PREMIER INN","53.73","Adoption and Residence Team & Allowances","3811","Accommodation Costs","21/07/2016"
"Wolverhampton City Council","http://opendatacommunities.org/id/metropolitan-district-council/wolverhampton","Virgintrains.co.uk","150.00","Delivery & OCE Development","4112","Public Transport","21/07/2016"
"Wolverhampton City Council","http://opendatacommunities.org/id/metropolitan-district-council/wolverhampton","GRO HM PASSPORT OFFICE","29.85","LAC Team","9399","Financial Assistance In Exceptional Circ","21/07/2016"
"Wolverhampton City Council","http://opendatacommunities.org/id/metropolitan-district-council/wolverhampton","UNTOUCHABLES","20.21","Cemeteries","5231","Materials","21/07/2016"
"Wolverhampton City Council","http://opendatacommunities.org/id/metropolitan-district-council/wolverhampton","LATIFS BILSTON","159.88","Head of Service - LAC","5310","Equipment - Purchase","21/07/2016"
"Wolverhampton City Council","http://opendatacommunities.org/id/metropolitan-district-council/wolverhampton","S & B WASTE","166.50","Old Hall Street Main","4900","Grounds Maintenance - Non Contract","21/07/2016"
"Wolverhampton City Council","http://opendatacommunities.org/id/metropolitan-district-council/wolverhampton","WILKO.COM","33.33","Revenues","5722","Equipment - Purchase","21/07/2016"
"Wolverhampton City Council","http://opendatacommunities.org/id/metropolitan-district-council/wolverhampton","ASDA SUPERSTORE","124.98","Headstart","5411","Provisions (Not for resale)","21/07/2016"
"Wolverhampton City Council","http://opendatacommunities.org/id/metropolitan-district-council/wolverhampton","LATIFS BILSTON","98.93","Head of Service - LAC","5310","Equipment - Purchase","21/07/2016"
"Wolverhampton City Council","http://opendatacommunities.org/id/metropolitan-district-council/wolverhampton","NATWEST BANK","100.00","Democratic Support","6011","Public Transport","21/07/2016"
"Wolverhampton City Council","http://opendatacommunities.org/id/metropolitan-district-council/wolverhampton","THE COAL AUTHORITY","77.00","Property Services - Commissioning","9399","Services - Fees and Charges","21/07/2016"
"Wolverhampton City Council","http://opendatacommunities.org/id/metropolitan-district-council/wolverhampton","Virgintrains.co.uk","116.55","Members Expenses","4112","Public Transport","21/07/2016"
"Wolverhampton City Council","http://opendatacommunities.org/id/metropolitan-district-council/wolverhampton","B & Q 1243","14.17","Caretakers Community Centre","5211","R&M - Departmental planned (external)","21/07/2016"
"Wolverhampton City Council","http://opendatacommunities.org/id/metropolitan-district-council/wolverhampton","TESCO DELIVERY SAVER2","2.50","Towers Outdoor Education Centre","5968","Provisions (Not for resale)","21/07/2016"
"Wolverhampton City Council","http://opendatacommunities.org/id/metropolitan-district-council/wolverhampton","YOURCASH","30.00","EIP Locality 1","6011","Financial Assistance In Exceptional Circ","21/07/2016"
"Wolverhampton City Council","http://opendatacommunities.org/id/metropolitan-district-council/wolverhampton","THE BRITISH BODY PIERC","60.00","Central Training","8249","Training Expenses","21/07/2016"
"Wolverhampton City Council","http://opendatacommunities.org/id/metropolitan-district-council/wolverhampton","Amazon UK Marketplace","3.50","Customer Services","5942","Books","21/07/2016"
"Wolverhampton City Council","http://opendatacommunities.org/id/metropolitan-district-council/wolverhampton","WILKO RETAIL LIMIT","16.67","Revenues","5722","Equipment - Purchase","20/07/2016"
"Wolverhampton City Council","http://opendatacommunities.org/id/metropolitan-district-council/wolverhampton","B & Q 1243","9.48","Caretakers Community Centre","5211","R&M - Departmental planned (external)","20/07/2016"
"Wolverhampton City Council","http://opendatacommunities.org/id/metropolitan-district-council/wolverhampton","CENTRO HOUSE","1270.92","Banking","4112","Public Transport","20/07/2016"
"Wolverhampton City Council","http://opendatacommunities.org/id/metropolitan-district-council/wolverhampton","ARGOS LTD","24.03","CIN/CP S17 SW Unit - Area 3A","5310","Financial Assistance In Exceptional Circ","20/07/2016"
"Wolverhampton City Council","http://opendatacommunities.org/id/metropolitan-district-council/wolverhampton","FACEBK GG7NV8AF92","400.01","Art Gallery","7311","Marketing \ Non-staff advertising","20/07/2016"
"Wolverhampton City Council","http://opendatacommunities.org/id/metropolitan-district-council/wolverhampton","FONE SHACK UK LTD","23.30","Caretakers Community Centre","4812","R&M - Departmental planned (external)","20/07/2016"
"Wolverhampton City Council","http://opendatacommunities.org/id/metropolitan-district-council/wolverhampton","BRITANNIA","93.33","Mental Health Assessment & Care Mgmt","7011","Services - Supplies & Services to users","20/07/2016"
"Wolverhampton City Council","http://opendatacommunities.org/id/metropolitan-district-council/wolverhampton","ROYAL CARPETS","150.00","LAC Transitions Team","5713","Client Allowances","20/07/2016"
"Wolverhampton City Council","http://opendatacommunities.org/id/metropolitan-district-council/wolverhampton","NORTHERN POTTERY LTD","129.60","Towers Outdoor Education Centre","5999","Equipment - Purchase","20/07/2016"
"Wolverhampton City Council","http://opendatacommunities.org/id/metropolitan-district-council/wolverhampton","CENTURY ELECTRICAL WHO","53.00","Public Conveniences","5065","R&M - Departmental planned (external)","20/07/2016"
"Wolverhampton City Council","http://opendatacommunities.org/id/metropolitan-district-council/wolverhampton","Amazon UK Marketplace","6.76","Global Budgets","5942","Books","20/07/2016"
"Wolverhampton City Council","http://opendatacommunities.org/id/metropolitan-district-council/wolverhampton","PP 2STROKE","115.00","Street Lighting Maintenance","8999","Services - Professional Fees","20/07/2016"
"Wolverhampton City Council","http://opendatacommunities.org/id/metropolitan-district-council/wolverhampton","REGISTRARS OFFICE","10.00","Adoption and Residence Team & Allowances","8299","Services - Fees and Charges","20/07/2016"
"Wolverhampton City Council","http://opendatacommunities.org/id/metropolitan-district-council/wolverhampton","AMAZON UK RETAIL AMAZO","13.75","Welfare Rights","5999","Catering","20/07/2016"
"Wolverhampton City Council","http://opendatacommunities.org/id/metropolitan-district-council/wolverhampton","TESCO STORES 5397","1.46","EIP Locality 1","5411","Provisions (Not for resale)","20/07/2016"
"Wolverhampton City Council","http://opendatacommunities.org/id/metropolitan-district-council/wolverhampton","Amazon UK Marketplace","28.99","Headstart","5942","Books","20/07/2016"
"Wolverhampton City Council","http://opendatacommunities.org/id/metropolitan-district-council/wolverhampton","Virgintrains.co.uk","181.40","Adoption and Residence Team & Allowances","4112","Public Transport","20/07/2016"
"Wolverhampton City Council","http://opendatacommunities.org/id/metropolitan-district-council/wolverhampton","Amazon UK Marketplace","93.25","Education And Access","5942","Equipment - Purchase","20/07/2016"
"Wolverhampton City Council","http://opendatacommunities.org/id/metropolitan-district-council/wolverhampton","ARGOS LTD","83.32","Independent Living Service","5310","Equipment - Purchase","20/07/2016"
"Wolverhampton City Council","http://opendatacommunities.org/id/metropolitan-district-council/wolverhampton","KEY INDUSTRIAL EQUIPME","74.00","Towers Outdoor Education Centre","5072","Equipment - Purchase","20/07/2016"
"Wolverhampton City Council","http://opendatacommunities.org/id/metropolitan-district-council/wolverhampton","Amazon UK Marketplace","3.99","Welfare Rights","5942","Stationery","20/07/2016"
"Wolverhampton City Council","http://opendatacommunities.org/id/metropolitan-district-council/wolverhampton","Amazon UK Marketplace","29.50","Education And Access","5942","Equipment - Purchase","20/07/2016"
"Wolverhampton City Council","http://opendatacommunities.org/id/metropolitan-district-council/wolverhampton","WEST COAST TRAINS","24.30","CIN/CP S17 SW Unit - Area 3A","4112","Public Transport","20/07/2016"
"Wolverhampton City Council","http://opendatacommunities.org/id/metropolitan-district-council/wolverhampton","HOBBY CRAFT LTD","16.67","Community Enablement","5970","Materials","20/07/2016"
"Wolverhampton City Council","http://opendatacommunities.org/id/metropolitan-district-council/wolverhampton","WWW.WOLVERHAMPTON.GOV.","77.00","Licensing - H.Carriage/Pr.Hire Vehicles","9399","Services - Fees and Charges","20/07/2016"
"Wolverhampton City Council","http://opendatacommunities.org/id/metropolitan-district-council/wolverhampton","Virgintrains.co.uk","141.10","Fostering Team & Allowances","4112","Public Transport","20/07/2016"
"Wolverhampton City Council","http://opendatacommunities.org/id/metropolitan-district-council/wolverhampton","Amazon UK Marketplace","15.40","Education And Access","5942","Equipment - Purchase","20/07/2016"
"Wolverhampton City Council","http://opendatacommunities.org/id/metropolitan-district-council/wolverhampton","WILKO RETAIL LIMIT","25.04","Revenues","5722","Equipment - Purchase","20/07/2016"
"Wolverhampton City Council","http://opendatacommunities.org/id/metropolitan-district-council/wolverhampton","WEBSTAFF/ATP PAYMENTS","37.00","Aldersley Leisure Village Bar","9399","Services - Fees and Charges","20/07/2016"
"Wolverhampton City Council","http://opendatacommunities.org/id/metropolitan-district-council/wolverhampton","TFM FARM & COUNTRY SUP","174.50","Northicote Farm","5399","Materials","20/07/2016"
"Wolverhampton City Council","http://opendatacommunities.org/id/metropolitan-district-council/wolverhampton","TVLICENSING.CO.UK","145.50","Bert Williams Leisure Centre","7392","Services - General Licences","20/07/2016"
"Wolverhampton City Council","http://opendatacommunities.org/id/metropolitan-district-council/wolverhampton","PREMIER INN","213.00","CIN/CP S17 SW Unit - Area 7","3811","Services - Supplies & Services to users","20/07/2016"
"Wolverhampton City Council","http://opendatacommunities.org/id/metropolitan-district-council/wolverhampton","PREMIER INN","54.57","Safeguarding Admin Resource","3811","Services - Supplies & Services to users","20/07/2016"
"Wolverhampton City Council","http://opendatacommunities.org/id/metropolitan-district-council/wolverhampton","POST OFFICE COUNTER","6.45","Childrens with Disabilities Team","9402","Comms - Postage","19/07/2016"
"Wolverhampton City Council","http://opendatacommunities.org/id/metropolitan-district-council/wolverhampton","WISEPOPSCOM","37.91","City Direct","7372","Computing - Purchase of Software","19/07/2016"
"Wolverhampton City Council","http://opendatacommunities.org/id/metropolitan-district-council/wolverhampton","POST OFFICE COUNTER","111.50","LAC Team","9402","Financial Assistance In Exceptional Circ","19/07/2016"
"Wolverhampton City Council","http://opendatacommunities.org/id/metropolitan-district-council/wolverhampton","ASDA HOME SHOPPING","-0.15","Ernest Bold Court","5411","Provisions (Not for resale)","19/07/2016"
"Wolverhampton City Council","http://opendatacommunities.org/id/metropolitan-district-council/wolverhampton","NOTEMACHINE","250.00","CIN/CP S17 SW Unit - Area 6","6011","Financial Assistance In Exceptional Circ","19/07/2016"
"Wolverhampton City Council","http://opendatacommunities.org/id/metropolitan-district-council/wolverhampton","Amazon UK Marketplace","25.55","Welfare Rights","5942","Catering","19/07/2016"
"Wolverhampton City Council","http://opendatacommunities.org/id/metropolitan-district-council/wolverhampton","SAINSBURYS SACAT (2340","23.44","LAC Transitions Team","5411","Client Allowances","19/07/2016"
"Wolverhampton City Council","http://opendatacommunities.org/id/metropolitan-district-council/wolverhampton","TRAINLINE","397.70","Adoption and Residence Team & Allowances","4112","Public Transport","19/07/2016"
"Wolverhampton City Council","http://opendatacommunities.org/id/metropolitan-district-council/wolverhampton","Amazon UK Marketplace","5.74","Parent / Partnership Service","5942","Stationery","19/07/2016"
"Wolverhampton City Council","http://opendatacommunities.org/id/metropolitan-district-council/wolverhampton","POLLET POOL GROUP","299.85","Parks - Ranger Service","5996","Materials","19/07/2016"
"Wolverhampton City Council","http://opendatacommunities.org/id/metropolitan-district-council/wolverhampton","Amazon UK Marketplace","6.99","Headstart","5942","Books","19/07/2016"
"Wolverhampton City Council","http://opendatacommunities.org/id/metropolitan-district-council/wolverhampton","Amazon UK Marketplace","49.83","Head of Service - LAC","5942","Direct Work With Children","19/07/2016"
"Wolverhampton City Council","http://opendatacommunities.org/id/metropolitan-district-council/wolverhampton","ASDA HOME SHOPPING","99.90","Ernest Bold Court","5411","Provisions (Not for resale)","19/07/2016"
"Wolverhampton City Council","http://opendatacommunities.org/id/metropolitan-district-council/wolverhampton","WAITROSE 696","99.00","EIP Locality 1","5411","Provisions (Not for resale)","19/07/2016"
"Wolverhampton City Council","http://opendatacommunities.org/id/metropolitan-district-council/wolverhampton","PC WORLD ONLINE","383.32","Education And Access","5732","Equipment - Purchase","19/07/2016"
"Wolverhampton City Council","http://opendatacommunities.org/id/metropolitan-district-council/wolverhampton","Amazon UK Marketplace","82.25","Headstart","5942","Books","19/07/2016"
"Wolverhampton City Council","http://opendatacommunities.org/id/metropolitan-district-council/wolverhampton","THE POST OFFICE","12.90","CIN/CP S17 SW Unit - Area 3B","9402","Comms - Postage","19/07/2016"
"Wolverhampton City Council","http://opendatacommunities.org/id/metropolitan-district-council/wolverhampton","GREEN-TECH LTD","117.00","Northicote Farm","7399","Equipment - R & M","19/07/2016"
"Wolverhampton City Council","http://opendatacommunities.org/id/metropolitan-district-council/wolverhampton","Amazon UK Marketplace","18.70","Education And Access","5942","Equipment - Purchase","19/07/2016"
"Wolverhampton City Council","http://opendatacommunities.org/id/metropolitan-district-council/wolverhampton","LIGHT IN THE BOX (UK)","88.36","Education And Access","5964","Equipment - Purchase","19/07/2016"
"Wolverhampton City Council","http://opendatacommunities.org/id/metropolitan-district-council/wolverhampton","FLYTE SO FANCY LTD","9.97","Northicote Farm","5995","Materials","19/07/2016"
"Wolverhampton City Council","http://opendatacommunities.org/id/metropolitan-district-council/wolverhampton","THE NEW BRIDGE GUEST H","40.00","Emergency Duty Team","7011","Services - Supplies & Services to users","19/07/2016"
"Wolverhampton City Council","http://opendatacommunities.org/id/metropolitan-district-council/wolverhampton","GRO HM PASSPORT OFFICE","9.25","LAC Team","9399","Financial Assistance In Exceptional Circ","19/07/2016"
"Wolverhampton City Council","http://opendatacommunities.org/id/metropolitan-district-council/wolverhampton","THE POST OFFICE","55.00","Macmillan Welfare Rights","9402","Comms - Postage","19/07/2016"
"Wolverhampton City Council","http://opendatacommunities.org/id/metropolitan-district-council/wolverhampton","CENTURY ELECTRICAL WHO","39.50","Strategy & Development","5065","Equipment - Purchase","19/07/2016"
"Wolverhampton City Council","http://opendatacommunities.org/id/metropolitan-district-council/wolverhampton","A F BLAKEMORE & SON LT","62.21","Mayoral Expenses","5411","Hospitality","19/07/2016"
"Wolverhampton City Council","http://opendatacommunities.org/id/metropolitan-district-council/wolverhampton","AMAZON UK RETAIL AMAZO","33.67","Head of Service - LAC","5999","Direct Work With Children","18/07/2016"
"Wolverhampton City Council","http://opendatacommunities.org/id/metropolitan-district-council/wolverhampton","SENSOR  10 BATTERIES","55.00","Telecare","5712","Equipment - Purchase","18/07/2016"
"Wolverhampton City Council","http://opendatacommunities.org/id/metropolitan-district-council/wolverhampton","WWW.VIKING-DIRECT.CO.U","29.88","Archives","5111","Stationery","18/07/2016"
"Wolverhampton City Council","http://opendatacommunities.org/id/metropolitan-district-council/wolverhampton","Amazon EU","28.44","Archives","5969","Books","18/07/2016"
"Wolverhampton City Council","http://opendatacommunities.org/id/metropolitan-district-council/wolverhampton","HOBBY CRAFT LTD","129.62","Adoption and Residence Team & Allowances","5970","Materials","18/07/2016"
"Wolverhampton City Council","http://opendatacommunities.org/id/metropolitan-district-council/wolverhampton","AMAZON UK RETAIL AMAZO","8.94","Global Budgets","5999","Books","18/07/2016"
"Wolverhampton City Council","http://opendatacommunities.org/id/metropolitan-district-council/wolverhampton","WWW.GEAR4MUSIC.COM","162.98","Headstart","5733","Equipment - Purchase","18/07/2016"
"Wolverhampton City Council","http://opendatacommunities.org/id/metropolitan-district-council/wolverhampton","K O MACHINES LTD","87.65","Northicote Farm","5013","Vehicle Maintenance - Repairs","18/07/2016"
"Wolverhampton City Council","http://opendatacommunities.org/id/metropolitan-district-council/wolverhampton","WWW.GEAR4MUSIC.COM","145.98","Headstart","5733","Equipment - Purchase","18/07/2016"
"Wolverhampton City Council","http://opendatacommunities.org/id/metropolitan-district-council/wolverhampton","ARGOS LTD","19.99","Assessment Team (North)","5310","Equipment - Purchase","18/07/2016"
"Wolverhampton City Council","http://opendatacommunities.org/id/metropolitan-district-council/wolverhampton","THE POST OFFICE","55.75","LAC Team","9402","Financial Assistance In Exceptional Circ","18/07/2016"
"Wolverhampton City Council","http://opendatacommunities.org/id/metropolitan-district-council/wolverhampton","WWW.REDWINGSLODGEB","258.08","CIN/CP S17 SW Unit - Area 3A","7011","Services - Supplies & Services to users","18/07/2016"
"Wolverhampton City Council","http://opendatacommunities.org/id/metropolitan-district-council/wolverhampton","PREMIER INN","87.48","Adoption Team","3811","Accommodation Costs","18/07/2016"
"Wolverhampton City Council","http://opendatacommunities.org/id/metropolitan-district-council/wolverhampton","Wix.com","46.57","Technical Support","5817","Computing - Purchase of Software","18/07/2016"
"Wolverhampton City Council","http://opendatacommunities.org/id/metropolitan-district-council/wolverhampton","Amazon UK Marketplace","54.70","Headstart","5942","Books","18/07/2016"
"Wolverhampton City Council","http://opendatacommunities.org/id/metropolitan-district-council/wolverhampton","BRITANNIA","107.08","Mental Health Assessment & Care Mgmt","7011","Services - Supplies & Services to users","18/07/2016"
"Wolverhampton City Council","http://opendatacommunities.org/id/metropolitan-district-council/wolverhampton","Virgintrains.co.uk","214.80","Strategic ICTS (ICT Serv Budget)","4112","Public Transport","18/07/2016"
"Wolverhampton City Council","http://opendatacommunities.org/id/metropolitan-district-council/wolverhampton","PREMIER INN","207.50","CIN/CP S17 SW Unit - Area 7","3811","Accommodation Costs","18/07/2016"
"Wolverhampton City Council","http://opendatacommunities.org/id/metropolitan-district-council/wolverhampton","TRAINLINE","-114.00","Customer Services","4112","Public Transport","18/07/2016"
"Wolverhampton City Council","http://opendatacommunities.org/id/metropolitan-district-council/wolverhampton","PREMIER INN","197.98","Headstart","3811","Services - Supplies & Services to users","18/07/2016"
"Wolverhampton City Council","http://opendatacommunities.org/id/metropolitan-district-council/wolverhampton","Amazon EU","83.75","Towers Outdoor Education Centre","5969","Equipment - Purchase","18/07/2016"
"Wolverhampton City Council","http://opendatacommunities.org/id/metropolitan-district-council/wolverhampton","B&M RETAIL LTD","59.91","LAC Transitions Team","5310","Client Allowances","18/07/2016"
"Wolverhampton City Council","http://opendatacommunities.org/id/metropolitan-district-council/wolverhampton","Virgintrains.co.uk","159.30","Mayoral Expenses","4112","Public Transport","18/07/2016"
"Wolverhampton City Council","http://opendatacommunities.org/id/metropolitan-district-council/wolverhampton","MAPLIN 268","128.54","Technician","5732","Equipment - Purchase","18/07/2016"
"Wolverhampton City Council","http://opendatacommunities.org/id/metropolitan-district-council/wolverhampton","HM PASSPORT OFFICE","72.50","LAC Transitions Team","9399","Services - Fees and Charges","18/07/2016"
"Wolverhampton City Council","http://opendatacommunities.org/id/metropolitan-district-council/wolverhampton","YMLP.COM","63.00","Art Gallery","7372","Computing - Purchase of Software","18/07/2016"
"Wolverhampton City Council","http://opendatacommunities.org/id/metropolitan-district-council/wolverhampton","ARGOS LTD","88.30","LAC Transitions Team","5310","Client Allowances","18/07/2016"
"Wolverhampton City Council","http://opendatacommunities.org/id/metropolitan-district-council/wolverhampton","Amazon EU","83.75","Towers Outdoor Education Centre","5969","Equipment - Purchase","18/07/2016"
"Wolverhampton City Council","http://opendatacommunities.org/id/metropolitan-district-council/wolverhampton","STHSTAFFS D/C' NCL","115.00","Legal Services","7997","Services - Professional Fees","18/07/2016"
"Wolverhampton City Council","http://opendatacommunities.org/id/metropolitan-district-council/wolverhampton","Virgintrains.co.uk","54.10","Members Expenses","4112","Public Transport","18/07/2016"
"Wolverhampton City Council","http://opendatacommunities.org/id/metropolitan-district-council/wolverhampton","Amazon EU","83.76","Towers Outdoor Education Centre","5969","Equipment - Purchase","18/07/2016"
"Wolverhampton City Council","http://opendatacommunities.org/id/metropolitan-district-council/wolverhampton","NETWORK WEST MIDLANDS","420.00","CIN/CP S17 SW Unit - Area 3A","9399","Client Transport","18/07/2016"
"Wolverhampton City Council","http://opendatacommunities.org/id/metropolitan-district-council/wolverhampton","SAINSBURYS 2040","20.00","Ernest Bold Court","5411","Provisions (Not for resale)","18/07/2016"
"Wolverhampton City Council","http://opendatacommunities.org/id/metropolitan-district-council/wolverhampton","TRAINLINE","17.90","LAC Transitions Team","4112","Client Allowances","18/07/2016"
"Wolverhampton City Council","http://opendatacommunities.org/id/metropolitan-district-council/wolverhampton","JONTROMANS","295.00","Technical Support","7372","Training Expenses","18/07/2016"
"Wolverhampton City Council","http://opendatacommunities.org/id/metropolitan-district-council/wolverhampton","PREMIER INN","197.98","Headstart","3811","Services - Supplies & Services to users","18/07/2016"
"Wolverhampton City Council","http://opendatacommunities.org/id/metropolitan-district-council/wolverhampton","Virgintrains.co.uk","58.00","CIN/CP S17 SW Unit - Area 3A","4112","Public Transport","18/07/2016"
"Wolverhampton City Council","http://opendatacommunities.org/id/metropolitan-district-council/wolverhampton","ASDA HOME SHOPPING","-0.63","Ernest Bold Court","5411","Provisions (Not for resale)","18/07/2016"
"Wolverhampton City Council","http://opendatacommunities.org/id/metropolitan-district-council/wolverhampton","Amazon UK Marketplace","11.54","Parent / Partnership Service","5942","Stationery","18/07/2016"
"Wolverhampton City Council","http://opendatacommunities.org/id/metropolitan-district-council/wolverhampton","Amazon UK Marketplace","14.48","Headstart","5942","Books","18/07/2016"
"Wolverhampton City Council","http://opendatacommunities.org/id/metropolitan-district-council/wolverhampton","Amazon UK Marketplace","44.22","Parent / Partnership Service","5942","Stationery","18/07/2016"
"Wolverhampton City Council","http://opendatacommunities.org/id/metropolitan-district-council/wolverhampton","Amazon UK Marketplace","5.50","Global Budgets","5942","Stationery","18/07/2016"
"Wolverhampton City Council","http://opendatacommunities.org/id/metropolitan-district-council/wolverhampton","AO RETAIL LIMITED","147.00","School Crossing Patrol","5722","R&M - Departmental planned (external)","18/07/2016"
"Wolverhampton City Council","http://opendatacommunities.org/id/metropolitan-district-council/wolverhampton","ASDA HOME SHOPPING","98.36","Ernest Bold Court","5411","Provisions (Not for resale)","18/07/2016"
"Wolverhampton City Council","http://opendatacommunities.org/id/metropolitan-district-council/wolverhampton","WWW.GEAR4MUSIC.COM","185.99","Headstart","5733","Equipment - Purchase","18/07/2016"
"Wolverhampton City Council","http://opendatacommunities.org/id/metropolitan-district-council/wolverhampton","ARGOS RETAIL GROUP","32.46","CIN/CP S17 SW Unit - Area 4","5310","Equipment - Purchase","18/07/2016"
"Wolverhampton City Council","http://opendatacommunities.org/id/metropolitan-district-council/wolverhampton","Virgintrains.co.uk","118.00","CIN/CP S17 SW Unit - Area 3A","4112","Public Transport","18/07/2016"
"Wolverhampton City Council","http://opendatacommunities.org/id/metropolitan-district-council/wolverhampton","PREMIER INN","59.48","Adoption Team","3811","Accommodation Costs","18/07/2016"
"Wolverhampton City Council","http://opendatacommunities.org/id/metropolitan-district-council/wolverhampton","KENABLE LTD","61.66","NHM Wildlife Photographer of the Year","5732","Materials","18/07/2016"
"Wolverhampton City Council","http://opendatacommunities.org/id/metropolitan-district-council/wolverhampton","CENTURY ELECTRICAL WHO","74.16","Public Conveniences","5065","R&M - Departmental planned (external)","15/07/2016"
"Wolverhampton City Council","http://opendatacommunities.org/id/metropolitan-district-council/wolverhampton","STATIONERY OFFICE BOOK","199.75","Transportation General","5942","Books","15/07/2016"
"Wolverhampton City Council","http://opendatacommunities.org/id/metropolitan-district-council/wolverhampton","MAPLIN 268","19.99","Emergency Duty Team","5732","Equipment - Purchase","15/07/2016"
"Wolverhampton City Council","http://opendatacommunities.org/id/metropolitan-district-council/wolverhampton","FTPE WEBTIS 1","74.70","LAC Transitions Team","4112","Client Allowances","15/07/2016"
"Wolverhampton City Council","http://opendatacommunities.org/id/metropolitan-district-council/wolverhampton","Amazon UK Marketplace","21.67","Towers Outdoor Education Centre","5942","Books","15/07/2016"
"Wolverhampton City Council","http://opendatacommunities.org/id/metropolitan-district-council/wolverhampton","AMAZON UK RETAIL AMAZO","10.62","Technical Support","5999","Equipment - Purchase","15/07/2016"
"Wolverhampton City Council","http://opendatacommunities.org/id/metropolitan-district-council/wolverhampton","SOMETHING DIFFEREN","35.75","Learning Technologies","5399","Equipment - Purchase","15/07/2016"
"Wolverhampton City Council","http://opendatacommunities.org/id/metropolitan-district-council/wolverhampton","MIDLAND HOTEL","463.34","Delivery & OCE Development","7011","Services - Supplies & Services to users","15/07/2016"
"Wolverhampton City Council","http://opendatacommunities.org/id/metropolitan-district-council/wolverhampton","WWW.SEVERNTRENTSEARCHE","290.00","Disposal Costs","4900","Services - Professional Fees","15/07/2016"
"Wolverhampton City Council","http://opendatacommunities.org/id/metropolitan-district-council/wolverhampton","THE ABBEY HOTEL","66.00","LAC Team","7011","Financial Assistance In Exceptional Circ","15/07/2016"
"Wolverhampton City Council","http://opendatacommunities.org/id/metropolitan-district-council/wolverhampton","WWW.SEVERNTRENTSEARCHE","290.00","Disposal Costs","4900","Services - Professional Fees","15/07/2016"
"Wolverhampton City Council","http://opendatacommunities.org/id/metropolitan-district-council/wolverhampton","BARCLAYS BANK PLC","250.00","CIN/CP S17 SW Unit - Area 5","6011","Financial Assistance In Exceptional Circ","15/07/2016"
"Wolverhampton City Council","http://opendatacommunities.org/id/metropolitan-district-council/wolverhampton","ASDA SUPERSTORE","10.53","Public Health Support Costs","5411","Provisions (Not for resale)","15/07/2016"
"Wolverhampton City Council","http://opendatacommunities.org/id/metropolitan-district-council/wolverhampton","RENTALCARS.COM","80.33","Headstart","7512","Car Allowances","15/07/2016"
"Wolverhampton City Council","http://opendatacommunities.org/id/metropolitan-district-council/wolverhampton","CT WOLVERHAMPTON","214.00","CIN/CP S17 SW Unit - Area 3A","8398","Financial Assistance In Exceptional Circ","15/07/2016"
"Wolverhampton City Council","http://opendatacommunities.org/id/metropolitan-district-council/wolverhampton","Virgintrains.co.uk","339.40","Adoption and Residence Team & Allowances","4112","Public Transport","15/07/2016"
"Wolverhampton City Council","http://opendatacommunities.org/id/metropolitan-district-council/wolverhampton","Amazon UK Marketplace","27.16","CIN/CP S17 SW Unit - Area 2","5942","Books","15/07/2016"
"Wolverhampton City Council","http://opendatacommunities.org/id/metropolitan-district-council/wolverhampton","S & B WASTE","166.50","Old Hall Street Main","4900","Grounds Maintenance - Non Contract","15/07/2016"
"Wolverhampton City Council","http://opendatacommunities.org/id/metropolitan-district-council/wolverhampton","WEST COAST TRAINS","15.60","Youth Offending Team","4112","Public Transport","15/07/2016"
"Wolverhampton City Council","http://opendatacommunities.org/id/metropolitan-district-council/wolverhampton","Amazon UK Marketplace","11.72","Head of Service - LAC","5942","Stationery","15/07/2016"
"Wolverhampton City Council","http://opendatacommunities.org/id/metropolitan-district-council/wolverhampton","Amazon EU","6.68","LAC Admin Team","5969","Equipment - Purchase","15/07/2016"
"Wolverhampton City Council","http://opendatacommunities.org/id/metropolitan-district-council/wolverhampton","TRAINLINE","66.30","Customer Services","4112","Public Transport","15/07/2016"
"Wolverhampton City Council","http://opendatacommunities.org/id/metropolitan-district-council/wolverhampton","WWW.SEVERNTRENTSEARCHE","290.00","Disposal Costs","4900","Services - Professional Fees","15/07/2016"
"Wolverhampton City Council","http://opendatacommunities.org/id/metropolitan-district-council/wolverhampton","Amazon UK Marketplace","7.76","Head of Service - LAC","5942","Stationery","15/07/2016"
"Wolverhampton City Council","http://opendatacommunities.org/id/metropolitan-district-council/wolverhampton","REDWINGS LODGE","-295.58","CIN/CP S17 SW Unit - Area 5","7011","Accommodation Costs","15/07/2016"
"Wolverhampton City Council","http://opendatacommunities.org/id/metropolitan-district-council/wolverhampton","WWW.SEVERNTRENTSEARCHE","290.00","Disposal Costs","4900","Services - Professional Fees","15/07/2016"
"Wolverhampton City Council","http://opendatacommunities.org/id/metropolitan-district-council/wolverhampton","EBUYER (UK) LTD","-224.99","Learning Technologies","5722","Equipment - Purchase","15/07/2016"
"Wolverhampton City Council","http://opendatacommunities.org/id/metropolitan-district-council/wolverhampton","TRAINLINE","99.45","Childrens with Disabilities Team","4112","Public Transport","15/07/2016"
"Wolverhampton City Council","http://opendatacommunities.org/id/metropolitan-district-council/wolverhampton","ARGOS LTD","99.32","LAC Transitions Team","5310","Client Allowances","15/07/2016"
"Wolverhampton City Council","http://opendatacommunities.org/id/metropolitan-district-council/wolverhampton","Virgintrains.co.uk","86.50","LAC Team","4112","Client Transport","15/07/2016"
"Wolverhampton City Council","http://opendatacommunities.org/id/metropolitan-district-council/wolverhampton","ASDA SUPERSTORE","200.00","CIN/CP S17 SW Unit - Area 5","5411","Provisions (Not for resale)","15/07/2016"
"Wolverhampton City Council","http://opendatacommunities.org/id/metropolitan-district-council/wolverhampton","SP  CYMBOMUTE LTD","67.47","Music Support Team","5734","Equipment - R & M","15/07/2016"
"Wolverhampton City Council","http://opendatacommunities.org/id/metropolitan-district-council/wolverhampton","Amazon UK Marketplace","44.15","Towers Outdoor Education Centre","5942","Equipment - Purchase","15/07/2016"
"Wolverhampton City Council","http://opendatacommunities.org/id/metropolitan-district-council/wolverhampton","CENTURY ELECTRICAL WHO","4.90","Street Lighting Maintenance","5065","Equipment - R & M","15/07/2016"
"Wolverhampton City Council","http://opendatacommunities.org/id/metropolitan-district-council/wolverhampton","WWW.SEVERNTRENTSEARCHE","290.00","Disposal Costs","4900","Services - Professional Fees","15/07/2016"
"Wolverhampton City Council","http://opendatacommunities.org/id/metropolitan-district-council/wolverhampton","ARGOS LTD","411.60","LAC Transitions Team","5310","Client Allowances","15/07/2016"
"Wolverhampton City Council","http://opendatacommunities.org/id/metropolitan-district-council/wolverhampton","WYNNSTAY ARGICULTURAL","224.85","Towers Outdoor Education Centre","5311","Equipment - Purchase","15/07/2016"
"Wolverhampton City Council","http://opendatacommunities.org/id/metropolitan-district-council/wolverhampton","Virgintrains.co.uk","7.00","Adoption and Residence Team & Allowances","4112","Public Transport","15/07/2016"
"Wolverhampton City Council","http://opendatacommunities.org/id/metropolitan-district-council/wolverhampton","WWW.SEVERNTRENTSEARCHE","290.00","Disposal Costs","4900","Services - Professional Fees","15/07/2016"
"Wolverhampton City Council","http://opendatacommunities.org/id/metropolitan-district-council/wolverhampton","Flybe2674 2674070644424","155.49","Headstart","4511","Public Transport","14/07/2016"
"Wolverhampton City Council","http://opendatacommunities.org/id/metropolitan-district-council/wolverhampton","Amazon UK Marketplace","8.75","Blakenhall Commty & Healthy Living Ctr","5942","Equipment - R & M","14/07/2016"
"Wolverhampton City Council","http://opendatacommunities.org/id/metropolitan-district-council/wolverhampton","PREMIER INN","68.48","Adoption Team","3811","Accommodation Costs","14/07/2016"
"Wolverhampton City Council","http://opendatacommunities.org/id/metropolitan-district-council/wolverhampton","WWW.ICO.GOV.UK","35.00","Members Expenses","9399","Subscriptions","14/07/2016"
"Wolverhampton City Council","http://opendatacommunities.org/id/metropolitan-district-council/wolverhampton","WWW.ICO.GOV.UK","35.00","Members Expenses","9399","Subscriptions","14/07/2016"
"Wolverhampton City Council","http://opendatacommunities.org/id/metropolitan-district-council/wolverhampton","Amazon UK Marketplace","132.92","Technical Support","5942","Computing - Purchase of Hardware","14/07/2016"
"Wolverhampton City Council","http://opendatacommunities.org/id/metropolitan-district-council/wolverhampton","WWW.ICO.GOV.UK","35.00","Members Expenses","9399","Subscriptions","14/07/2016"
"Wolverhampton City Council","http://opendatacommunities.org/id/metropolitan-district-council/wolverhampton","E01350800000000","70.00","Ernest Bold Court","6011","Educ Trips, Holidays, Outings, Activity","14/07/2016"
"Wolverhampton City Council","http://opendatacommunities.org/id/metropolitan-district-council/wolverhampton","ASDA SUPERSTORE","26.88","Headstart","5411","Provisions (Not for resale)","14/07/2016"
"Wolverhampton City Council","http://opendatacommunities.org/id/metropolitan-district-council/wolverhampton","POST OFFICE COUNTER","174.00","EIP Locality 7","9402","Comms - Postage","14/07/2016"
"Wolverhampton City Council","http://opendatacommunities.org/id/metropolitan-district-council/wolverhampton","POST OFFICE COUNTER","110.00","EIP Locality 8","9402","Comms - Postage","14/07/2016"
"Wolverhampton City Council","http://opendatacommunities.org/id/metropolitan-district-council/wolverhampton","WWW.ICO.GOV.UK","35.00","Members Expenses","9399","Subscriptions","14/07/2016"
"Wolverhampton City Council","http://opendatacommunities.org/id/metropolitan-district-council/wolverhampton","ASDA SUPERSTORE","42.00","Headstart","5411","Provisions (Not for resale)","14/07/2016"
"Wolverhampton City Council","http://opendatacommunities.org/id/metropolitan-district-council/wolverhampton","WESTMINSTER PARKING PA","2.08","Mayoral Expenses","7523","Parking Fees","14/07/2016"
"Wolverhampton City Council","http://opendatacommunities.org/id/metropolitan-district-council/wolverhampton","Amazon UK Marketplace","53.91","Learning Technologies","5942","Equipment - Purchase","14/07/2016"
"Wolverhampton City Council","http://opendatacommunities.org/id/metropolitan-district-council/wolverhampton","ASDA SUPERSTORE","278.08","Upper Pendeford Farm Childrens Home","5411","Provisions (Not for resale)","14/07/2016"
"Wolverhampton City Council","http://opendatacommunities.org/id/metropolitan-district-council/wolverhampton","ARGOS DIRECT","-3.95","Upper Pendeford Farm Childrens Home","5310","Equipment - Purchase","14/07/2016"
"Wolverhampton City Council","http://opendatacommunities.org/id/metropolitan-district-council/wolverhampton","Amazon UK Marketplace","20.74","Technical Support","5942","Computing - Purchase of Hardware","14/07/2016"
"Wolverhampton City Council","http://opendatacommunities.org/id/metropolitan-district-council/wolverhampton","WWW.ICO.GOV.UK","35.00","Members Expenses","9399","Subscriptions","14/07/2016"
"Wolverhampton City Council","http://opendatacommunities.org/id/metropolitan-district-council/wolverhampton","PAYPAL  THEROTA","327.06","Civic Halls Non Direct Management A/C","5735","Marketing \ Non-staff advertising","14/07/2016"
"Wolverhampton City Council","http://opendatacommunities.org/id/metropolitan-district-council/wolverhampton","Amazon UK Marketplace","1.66","Blakenhall Commty & Healthy Living Ctr","5942","Equipment - Purchase","14/07/2016"
"Wolverhampton City Council","http://opendatacommunities.org/id/metropolitan-district-council/wolverhampton","B & Q 1243","5.83","Bilston Town Hall","5211","R&M - Departmental planned (external)","14/07/2016"
"Wolverhampton City Council","http://opendatacommunities.org/id/metropolitan-district-council/wolverhampton","REDWINGS LODGE","353.87","CIN/CP S17 SW Unit - Area 5","7011","Accommodation Costs","14/07/2016"
"Wolverhampton City Council","http://opendatacommunities.org/id/metropolitan-district-council/wolverhampton","IKEA SACAT","313.00","CIN/CP S17 SW Unit - Area 6","5719","Equipment - Purchase","14/07/2016"
"Wolverhampton City Council","http://opendatacommunities.org/id/metropolitan-district-council/wolverhampton","PREMIER INN","142.00","Adoption Team","3811","Services - Supplies & Services to users","14/07/2016"
"Wolverhampton City Council","http://opendatacommunities.org/id/metropolitan-district-council/wolverhampton","ROYAL BK OF SCOTLAND","250.00","Childrens with Disabilities Team","6011","Financial Assistance In Exceptional Circ","14/07/2016"
"Wolverhampton City Council","http://opendatacommunities.org/id/metropolitan-district-council/wolverhampton","REDWINGS LODGE","14.25","CIN/CP S17 SW Unit - Area 5","7011","Catering","14/07/2016"
"Wolverhampton City Council","http://opendatacommunities.org/id/metropolitan-district-council/wolverhampton","DULUX DEC CENTRE","327.96","NHM Wildlife Photographer of the Year","5719","Materials","14/07/2016"
"Wolverhampton City Council","http://opendatacommunities.org/id/metropolitan-district-council/wolverhampton","SCREWFIX DIRECT","50.99","EIP Locality 5","5211","Materials","14/07/2016"
"Wolverhampton City Council","http://opendatacommunities.org/id/metropolitan-district-council/wolverhampton","ARGOS LTD","85.98","Duke Street Bungalows","5310","Equipment - Purchase","14/07/2016"
"Wolverhampton City Council","http://opendatacommunities.org/id/metropolitan-district-council/wolverhampton","WWW.ICO.GOV.UK","35.00","Members Expenses","9399","Subscriptions","14/07/2016"
"Wolverhampton City Council","http://opendatacommunities.org/id/metropolitan-district-council/wolverhampton","PREMIER INN","118.33","Adoption Team","3811","Accommodation Costs","14/07/2016"
"Wolverhampton City Council","http://opendatacommunities.org/id/metropolitan-district-council/wolverhampton","REDWINGS LODGE","20.70","CIN/CP S17 SW Unit - Area 5","7011","Catering","14/07/2016"
"Wolverhampton City Council","http://opendatacommunities.org/id/metropolitan-district-council/wolverhampton","WOLVERHAMPTON TROPHY C","30.85","Foundation Studies","5999","Equipment - Purchase","14/07/2016"
"Wolverhampton City Council","http://opendatacommunities.org/id/metropolitan-district-council/wolverhampton","LEWIS'S MEDICAL SUPPLI","4.80","Head of Service - LAC","5047","First Aid Requisites","14/07/2016"
"Wolverhampton City Council","http://opendatacommunities.org/id/metropolitan-district-council/wolverhampton","TRAINLINE","86.29","Customer Services","4112","Public Transport","14/07/2016"
"Wolverhampton City Council","http://opendatacommunities.org/id/metropolitan-district-council/wolverhampton","LAMBETH INTERNET PAYM","10.17","LAC Team","9399","Financial Assistance In Exceptional Circ","14/07/2016"
"Wolverhampton City Council","http://opendatacommunities.org/id/metropolitan-district-council/wolverhampton","WWW.ICO.GOV.UK","35.00","Members Expenses","9399","Subscriptions","14/07/2016"
"Wolverhampton City Council","http://opendatacommunities.org/id/metropolitan-district-council/wolverhampton","THE COAL AUTHORITY","450.00","Disposal Costs","9399","Services - Professional Fees","14/07/2016"
"Wolverhampton City Council","http://opendatacommunities.org/id/metropolitan-district-council/wolverhampton","Amazon UK Marketplace","7.74","Blakenhall Commty & Healthy Living Ctr","5942","Equipment - Purchase","14/07/2016"
"Wolverhampton City Council","http://opendatacommunities.org/id/metropolitan-district-council/wolverhampton","WWW.ICO.GOV.UK","35.00","Members Expenses","9399","Subscriptions","14/07/2016"
"Wolverhampton City Council","http://opendatacommunities.org/id/metropolitan-district-council/wolverhampton","REGISTRARS OFFICE","120.00","Head of Service - CINCP","8299","Services - Professional Fees","14/07/2016"
"Wolverhampton City Council","http://opendatacommunities.org/id/metropolitan-district-council/wolverhampton","WWW.ICO.GOV.UK","35.00","Members Expenses","9399","Subscriptions","14/07/2016"
"Wolverhampton City Council","http://opendatacommunities.org/id/metropolitan-district-council/wolverhampton","Amazon UK Marketplace","2.67","Blakenhall Commty & Healthy Living Ctr","5942","Equipment - Purchase","14/07/2016"
"Wolverhampton City Council","http://opendatacommunities.org/id/metropolitan-district-council/wolverhampton","PREMIER INN","-118.33","Adoption Team","3811","Accommodation Costs","14/07/2016"
"Wolverhampton City Council","http://opendatacommunities.org/id/metropolitan-district-council/wolverhampton","TV LICENSING","145.50","The Little Civic","7392","Services - General Licences","13/07/2016"
"Wolverhampton City Council","http://opendatacommunities.org/id/metropolitan-district-council/wolverhampton","Amazon UK Marketplace","26.33","Landscape","5942","Materials","13/07/2016"
"Wolverhampton City Council","http://opendatacommunities.org/id/metropolitan-district-council/wolverhampton","PATISSERIE VALERIE","15.42","Mayoral Expenses","5812","Subsistence","13/07/2016"
"Wolverhampton City Council","http://opendatacommunities.org/id/metropolitan-district-council/wolverhampton","Amazon UK Marketplace","32.97","Blakenhall Commty & Healthy Living Ctr","5942","Provisions (Resale)","13/07/2016"
"Wolverhampton City Council","http://opendatacommunities.org/id/metropolitan-district-council/wolverhampton","HSBC INVOICE FINAN","764.09","Towers Outdoor Education Centre","6012","Services - Fees and Charges","13/07/2016"
"Wolverhampton City Council","http://opendatacommunities.org/id/metropolitan-district-council/wolverhampton","C L JONES LIMITED","461.68","Towers Outdoor Education Centre","5211","Materials","13/07/2016"
"Wolverhampton City Council","http://opendatacommunities.org/id/metropolitan-district-council/wolverhampton","Virgintrains.co.uk","41.60","Members Expenses","4112","Public Transport","13/07/2016"
"Wolverhampton City Council","http://opendatacommunities.org/id/metropolitan-district-council/wolverhampton","NEWITTSCOM","48.19","Aldersley Leisure Village","5655","Equipment - Purchase","13/07/2016"
"Wolverhampton City Council","http://opendatacommunities.org/id/metropolitan-district-council/wolverhampton","HARLECH FOODSERVICE LT","278.12","Towers Outdoor Education Centre","5422","Catering","13/07/2016"
"Wolverhampton City Council","http://opendatacommunities.org/id/metropolitan-district-council/wolverhampton","TESCO STORES 5194","71.59","Towers Outdoor Education Centre","5411","Provisions (Not for resale)","13/07/2016"
"Wolverhampton City Council","http://opendatacommunities.org/id/metropolitan-district-council/wolverhampton","WEST COAST TRAINS","7.50","Children & Young People Support Costs","4112","Public Transport","13/07/2016"
"Wolverhampton City Council","http://opendatacommunities.org/id/metropolitan-district-council/wolverhampton","REDWINGS LODGE","139.90","CIN/CP S17 SW Unit - Area 7","7011","Services - Supplies & Services to users","13/07/2016"
"Wolverhampton City Council","http://opendatacommunities.org/id/metropolitan-district-council/wolverhampton","SCREWFIX DIRECT","69.44","Customer Services","5211","Materials","13/07/2016"
"Wolverhampton City Council","http://opendatacommunities.org/id/metropolitan-district-council/wolverhampton","M6 TOLL","4.58","Mayoral Expenses","4784","Parking Fees","13/07/2016"
"Wolverhampton City Council","http://opendatacommunities.org/id/metropolitan-district-council/wolverhampton","FURNITURE SUPERSTO","133.33","LAC Transitions Team","5712","Independant Living Allowance","13/07/2016"
"Wolverhampton City Council","http://opendatacommunities.org/id/metropolitan-district-council/wolverhampton","WOLVERHAMPTON PRINT CO","20.00","Communications & Marketing - General","2741","Events","13/07/2016"
"Wolverhampton City Council","http://opendatacommunities.org/id/metropolitan-district-council/wolverhampton","SCREWFIX DIRECT","33.32","Play General","5211","Materials","13/07/2016"
"Wolverhampton City Council","http://opendatacommunities.org/id/metropolitan-district-council/wolverhampton","SCREWFIX DIRECT","49.97","Bilston Town Hall","5211","Equipment - Purchase","13/07/2016"
"Wolverhampton City Council","http://opendatacommunities.org/id/metropolitan-district-council/wolverhampton","HN NUTTALL LTD","743.21","Towers Outdoor Education Centre","5085","Equipment - Purchase","13/07/2016"
"Wolverhampton City Council","http://opendatacommunities.org/id/metropolitan-district-council/wolverhampton","REDWINGS LODGE","5.50","CIN/CP S17 SW Unit - Area 7","7011","Services - Supplies & Services to users","13/07/2016"
"Wolverhampton City Council","http://opendatacommunities.org/id/metropolitan-district-council/wolverhampton","S & B WASTE","166.50","Old Hall Street Main","4900","Grounds Maintenance - Non Contract","13/07/2016"
"Wolverhampton City Council","http://opendatacommunities.org/id/metropolitan-district-council/wolverhampton","NOVOTEL HOTELS","52.50","Mayoral Expenses","3642","Accommodation Costs","13/07/2016"
"Wolverhampton City Council","http://opendatacommunities.org/id/metropolitan-district-council/wolverhampton","SCREWFIX DIRECT","64.95","Telecare","5211","Materials","13/07/2016"
"Wolverhampton City Council","http://opendatacommunities.org/id/metropolitan-district-council/wolverhampton","ROYAL CARPETS","316.67","LAC Transitions Team","5713","Client Allowances","13/07/2016"
"Wolverhampton City Council","http://opendatacommunities.org/id/metropolitan-district-council/wolverhampton","CORPORATE INSIGNIA LTD","14.30","WV Active Business Support","5943","Clothing / Uniforms","13/07/2016"
"Wolverhampton City Council","http://opendatacommunities.org/id/metropolitan-district-council/wolverhampton","REDWINGS LODGE","-5.50","CIN/CP S17 SW Unit - Area 7","7011","Services - Supplies & Services to users","13/07/2016"
"Wolverhampton City Council","http://opendatacommunities.org/id/metropolitan-district-council/wolverhampton","ROYAL CARPETS","179.17","LAC Transitions Team","5713","Client Allowances","13/07/2016"
"Wolverhampton City Council","http://opendatacommunities.org/id/metropolitan-district-council/wolverhampton","REDWINGS LODGE","15.90","CIN/CP S17 SW Unit - Area 5","7011","Catering","13/07/2016"
"Wolverhampton City Council","http://opendatacommunities.org/id/metropolitan-district-council/wolverhampton","iZ  Taxi driver","18.20","Communications & Marketing - General","4121","Events","13/07/2016"
"Wolverhampton City Council","http://opendatacommunities.org/id/metropolitan-district-council/wolverhampton","REDWINGS LODGE","20.05","CIN/CP S17 SW Unit - Area 5","7011","Catering","12/07/2016"
"Wolverhampton City Council","http://opendatacommunities.org/id/metropolitan-district-council/wolverhampton","REDWINGS LODGE","139.90","CIN/CP S17 SW Unit - Area 7","7011","Services - Supplies & Services to users","12/07/2016"
"Wolverhampton City Council","http://opendatacommunities.org/id/metropolitan-district-council/wolverhampton","ONE STOP STORES 2828","3.00","Mayoral Expenses","5411","Hospitality","12/07/2016"
"Wolverhampton City Council","http://opendatacommunities.org/id/metropolitan-district-council/wolverhampton","HM PASSPORT OFFICE","49.00","LAC Team","9399","Financial Assistance In Exceptional Circ","12/07/2016"
"Wolverhampton City Council","http://opendatacommunities.org/id/metropolitan-district-council/wolverhampton","FLYBE.COM 26740706204600","206.85","Visitor Economy - Development","4511","Public Transport","12/07/2016"
"Wolverhampton City Council","http://opendatacommunities.org/id/metropolitan-district-council/wolverhampton","THE STUDIO MARKETING D","3.20","Mayoral Expenses","2741","Publications","12/07/2016"
"Wolverhampton City Council","http://opendatacommunities.org/id/metropolitan-district-council/wolverhampton","REDWINGS LODGE","8.50","CIN/CP S17 SW Unit - Area 5","7011","Catering","12/07/2016"
"Wolverhampton City Council","http://opendatacommunities.org/id/metropolitan-district-council/wolverhampton","REDWINGS LODGE","-116.54","CIN/CP S17 SW Unit - Area 5","7011","Accommodation Costs","12/07/2016"
"Wolverhampton City Council","http://opendatacommunities.org/id/metropolitan-district-council/wolverhampton","CHEMSOL CYMRU LTD","413.24","Towers Outdoor Education Centre","5199","Equipment - Purchase","12/07/2016"
"Wolverhampton City Council","http://opendatacommunities.org/id/metropolitan-district-council/wolverhampton","MATALAN","6.67","Mayoral Expenses","5691","Clothing / Uniforms","12/07/2016"
"Wolverhampton City Council","http://opendatacommunities.org/id/metropolitan-district-council/wolverhampton","BOWTIE","186.30","Communications & Marketing - General","7221","Events","12/07/2016"
"Wolverhampton City Council","http://opendatacommunities.org/id/metropolitan-district-council/wolverhampton","FSPRG.COM INFFUSE.COM","5.05","Technical Support","5734","Subscriptions","12/07/2016"
"Wolverhampton City Council","http://opendatacommunities.org/id/metropolitan-district-council/wolverhampton","615511","7.50","Headstart","7523","Car Allowances","12/07/2016"
"Wolverhampton City Council","http://opendatacommunities.org/id/metropolitan-district-council/wolverhampton","TFL CC/LEZ CHARGE","11.50","Mayoral Expenses","4784","Parking Fees","12/07/2016"
"Wolverhampton City Council","http://opendatacommunities.org/id/metropolitan-district-council/wolverhampton","NORTHERN POTTERY LTD","113.10","Towers Outdoor Education Centre","5999","Equipment - Purchase","12/07/2016"
"Wolverhampton City Council","http://opendatacommunities.org/id/metropolitan-district-council/wolverhampton","W M MORRISON PLC","5.96","Ernest Bold Court","5411","Provisions (Not for resale)","12/07/2016"
"Wolverhampton City Council","http://opendatacommunities.org/id/metropolitan-district-council/wolverhampton","E01510300000000","60.00","Emergency Duty Team","6011","Financial Assistance In Exceptional Circ","12/07/2016"
"Wolverhampton City Council","http://opendatacommunities.org/id/metropolitan-district-council/wolverhampton","BETTWS MOTORS LIMITED","200.67","Towers Outdoor Education Centre","7538","Vehicle Maintenance - Repairs","12/07/2016"
"Wolverhampton City Council","http://opendatacommunities.org/id/metropolitan-district-council/wolverhampton","ASDA SUPERSTORE","23.00","CIN/CP S17 SW Unit - Area 5","5411","Provisions (Not for resale)","12/07/2016"
"Wolverhampton City Council","http://opendatacommunities.org/id/metropolitan-district-council/wolverhampton","Amazon EU","92.00","School Improvement","5969","Equipment - Purchase","12/07/2016"
"Wolverhampton City Council","http://opendatacommunities.org/id/metropolitan-district-council/wolverhampton","ASDA HOME SHOPPING","-4.26","Ernest Bold Court","5411","Provisions (Not for resale)","12/07/2016"
"Wolverhampton City Council","http://opendatacommunities.org/id/metropolitan-district-council/wolverhampton","ASDA HOME SHOPPING","93.19","Ernest Bold Court","5411","Provisions (Not for resale)","12/07/2016"
"Wolverhampton City Council","http://opendatacommunities.org/id/metropolitan-district-council/wolverhampton","MAPLIN 268","39.98","Technical Support","5732","Computing - Purchase of Hardware","12/07/2016"
"Wolverhampton City Council","http://opendatacommunities.org/id/metropolitan-district-council/wolverhampton","WESTMINSTER FORUM","210.00","Wholly Owned Company - Set up","7392","Conference Expenses","12/07/2016"
"Wolverhampton City Council","http://opendatacommunities.org/id/metropolitan-district-council/wolverhampton","WWW.ICO.GOV.UK","35.00","Electoral Registration","9399","Services - Supplies & Services to users","12/07/2016"
"Wolverhampton City Council","http://opendatacommunities.org/id/metropolitan-district-council/wolverhampton","ARTS MARKETINGASSO","200.00","Visitor Economy - Development","8699","Subscriptions","12/07/2016"
"Wolverhampton City Council","http://opendatacommunities.org/id/metropolitan-district-council/wolverhampton","ASDA SUPERSTORE","11.50","CIN/CP S17 SW Unit - Area 5","5411","Provisions (Not for resale)","12/07/2016"
"Wolverhampton City Council","http://opendatacommunities.org/id/metropolitan-district-council/wolverhampton","Amazon UK Marketplace","179.99","Technical Support","5942","Computing - Purchase of Hardware","11/07/2016"
"Wolverhampton City Council","http://opendatacommunities.org/id/metropolitan-district-council/wolverhampton","Amazon EU","34.60","Customer Services","5969","Equipment - Purchase","11/07/2016"
"Wolverhampton City Council","http://opendatacommunities.org/id/metropolitan-district-council/wolverhampton","WWW.ICO.GOV.UK","35.00","Members Expenses","9399","Subscriptions","11/07/2016"
"Wolverhampton City Council","http://opendatacommunities.org/id/metropolitan-district-council/wolverhampton","WOLVERHAMPTON ART","49.60","Art Gallery","8299","Catering","11/07/2016"
"Wolverhampton City Council","http://opendatacommunities.org/id/metropolitan-district-council/wolverhampton","REDWINGS LODGE","11.75","CIN/CP S17 SW Unit - Area 5","7011","Catering","11/07/2016"
"Wolverhampton City Council","http://opendatacommunities.org/id/metropolitan-district-council/wolverhampton","TRAINLINE","-49.20","Director of Governance","4112","Public Transport","11/07/2016"
"Wolverhampton City Council","http://opendatacommunities.org/id/metropolitan-district-council/wolverhampton","FACEBOOK 2BZCV8NB92","575.98","Communications & Marketing - General","7311","Marketing \ Non-staff advertising","11/07/2016"
"Wolverhampton City Council","http://opendatacommunities.org/id/metropolitan-district-council/wolverhampton","WWW.ICO.GOV.UK","35.00","Members Expenses","9399","Subscriptions","11/07/2016"
"Wolverhampton City Council","http://opendatacommunities.org/id/metropolitan-district-council/wolverhampton","Wix.com","1.90","Technical Support","5817","Subscriptions","11/07/2016"
"Wolverhampton City Council","http://opendatacommunities.org/id/metropolitan-district-council/wolverhampton","WWW.ICO.GOV.UK","35.00","Members Expenses","9399","Subscriptions","11/07/2016"
"Wolverhampton City Council","http://opendatacommunities.org/id/metropolitan-district-council/wolverhampton","Virgintrains.co.uk","181.40","Adoption and Residence Team & Allowances","4112","Public Transport","11/07/2016"
"Wolverhampton City Council","http://opendatacommunities.org/id/metropolitan-district-council/wolverhampton","WEST COAST TRAINS","71.60","CIN/CP S17 SW Unit - Area 1","4112","Public Transport","11/07/2016"
"Wolverhampton City Council","http://opendatacommunities.org/id/metropolitan-district-council/wolverhampton","REDWINGS LODGE","233.08","CIN/CP S17 SW Unit - Area 5","7011","Accommodation Costs","11/07/2016"
"Wolverhampton City Council","http://opendatacommunities.org/id/metropolitan-district-council/wolverhampton","WM MORRISON 063","22.19","Headstart","5411","Provisions (Not for resale)","11/07/2016"
"Wolverhampton City Council","http://opendatacommunities.org/id/metropolitan-district-council/wolverhampton","POST OFFICE COUNTER","58.75","LAC Team","9402","Comms - Postage","11/07/2016"
"Wolverhampton City Council","http://opendatacommunities.org/id/metropolitan-district-council/wolverhampton","WWW.ICO.GOV.UK","35.00","Members Expenses","9399","Subscriptions","11/07/2016"
"Wolverhampton City Council","http://opendatacommunities.org/id/metropolitan-district-council/wolverhampton","TK MAXX","36.98","Headstart","5331","Equipment - Purchase","11/07/2016"
"Wolverhampton City Council","http://opendatacommunities.org/id/metropolitan-district-council/wolverhampton","ETI LTD","22.50","Environmental Health - Pub Prot - Gen","5085","Equipment - Purchase","11/07/2016"
"Wolverhampton City Council","http://opendatacommunities.org/id/metropolitan-district-council/wolverhampton","Virgintrains.co.uk","90.55","LAC Team","4112","Public Transport","11/07/2016"
"Wolverhampton City Council","http://opendatacommunities.org/id/metropolitan-district-council/wolverhampton","VWO.com","46.68","City Direct","7399","Equipment - Purchase","11/07/2016"
"Wolverhampton City Council","http://opendatacommunities.org/id/metropolitan-district-council/wolverhampton","PAST PRESENT AND FUTUR","458.33","LAC Transitions Team","5732","Client Allowances","11/07/2016"
"Wolverhampton City Council","http://opendatacommunities.org/id/metropolitan-district-council/wolverhampton","TRAINLINE","-46.05","Director of Education","4112","Public Transport","11/07/2016"
"Wolverhampton City Council","http://opendatacommunities.org/id/metropolitan-district-council/wolverhampton","WWW.ICO.GOV.UK","500.00","Information Governance Team","9399","Subscriptions","11/07/2016"
"Wolverhampton City Council","http://opendatacommunities.org/id/metropolitan-district-council/wolverhampton","WWW.ICO.GOV.UK","35.00","Members Expenses","9399","Subscriptions","11/07/2016"
"Wolverhampton City Council","http://opendatacommunities.org/id/metropolitan-district-council/wolverhampton","ASDA HOME SHOPPING","-0.17","Ernest Bold Court","5411","Provisions (Not for resale)","11/07/2016"
"Wolverhampton City Council","http://opendatacommunities.org/id/metropolitan-district-council/wolverhampton","WWW.ICO.GOV.UK","35.00","Members Expenses","9399","Subscriptions","11/07/2016"
"Wolverhampton City Council","http://opendatacommunities.org/id/metropolitan-district-council/wolverhampton","ASDA HOME SHOPPING","98.27","Ernest Bold Court","5411","Provisions (Not for resale)","11/07/2016"
"Wolverhampton City Council","http://opendatacommunities.org/id/metropolitan-district-council/wolverhampton","REDWINGS LODGE","25.85","CIN/CP S17 SW Unit - Area 5","7011","Catering","11/07/2016"
"Wolverhampton City Council","http://opendatacommunities.org/id/metropolitan-district-council/wolverhampton","Wix.com","93.13","Technical Support","5817","Computing - Purchase of Software","11/07/2016"
"Wolverhampton City Council","http://opendatacommunities.org/id/metropolitan-district-council/wolverhampton","Amazon EU","58.32","Licensing - General","5969","Equipment - Purchase","11/07/2016"
"Wolverhampton City Council","http://opendatacommunities.org/id/metropolitan-district-council/wolverhampton","Virgintrains.co.uk","119.60","LAC Team","4112","Public Transport","11/07/2016"
"Wolverhampton City Council","http://opendatacommunities.org/id/metropolitan-district-council/wolverhampton","THE NEW BRIDGE GUEST H","45.00","Emergency Duty Team","7011","Services - Supplies & Services to users","11/07/2016"
"Wolverhampton City Council","http://opendatacommunities.org/id/metropolitan-district-council/wolverhampton","WWW.ICO.GOV.UK","35.00","Members Expenses","9399","Subscriptions","11/07/2016"
"Wolverhampton City Council","http://opendatacommunities.org/id/metropolitan-district-council/wolverhampton","ASDA HOME SHOPPING","-2.60","Ernest Bold Court","5411","Provisions (Not for resale)","11/07/2016"
"Wolverhampton City Council","http://opendatacommunities.org/id/metropolitan-district-council/wolverhampton","WWW.ICO.GOV.UK","35.00","Members Expenses","9399","Subscriptions","11/07/2016"
"Wolverhampton City Council","http://opendatacommunities.org/id/metropolitan-district-council/wolverhampton","FACEBOOK 3BZCV8NB92","24.02","Communications & Marketing - General","7311","Marketing \ Non-staff advertising","11/07/2016"
"Wolverhampton City Council","http://opendatacommunities.org/id/metropolitan-district-council/wolverhampton","ARGOS RETAIL GROUP","23.94","Upper Pendeford Farm Childrens Home","5310","Equipment - Purchase","11/07/2016"
"Wolverhampton City Council","http://opendatacommunities.org/id/metropolitan-district-council/wolverhampton","WWW.ICO.GOV.UK","35.00","Members Expenses","9399","Subscriptions","11/07/2016"
"Wolverhampton City Council","http://opendatacommunities.org/id/metropolitan-district-council/wolverhampton","W M MORRISON PLC","22.18","Ernest Bold Court","5411","Provisions (Not for resale)","11/07/2016"
"Wolverhampton City Council","http://opendatacommunities.org/id/metropolitan-district-council/wolverhampton","ARGOS RETAIL GROUP","5.99","Upper Pendeford Farm Childrens Home","5310","Equipment - Purchase","11/07/2016"
"Wolverhampton City Council","http://opendatacommunities.org/id/metropolitan-district-council/wolverhampton","WWW.ICO.GOV.UK","35.00","Members Expenses","9399","Subscriptions","11/07/2016"
"Wolverhampton City Council","http://opendatacommunities.org/id/metropolitan-district-council/wolverhampton","REDWINGS LODGE","15.40","CIN/CP S17 SW Unit - Area 5","7011","Catering","11/07/2016"
"Wolverhampton City Council","http://opendatacommunities.org/id/metropolitan-district-council/wolverhampton","PRO AUDIO SERVICE LTD","51.05","Headstart","7629","Equipment - R & M","11/07/2016"
"Wolverhampton City Council","http://opendatacommunities.org/id/metropolitan-district-council/wolverhampton","WWW.ICO.GOV.UK","35.00","Members Expenses","9399","Subscriptions","11/07/2016"
"Wolverhampton City Council","http://opendatacommunities.org/id/metropolitan-district-council/wolverhampton","REDWINGS LODGE","41.62","CIN/CP S17 SW Unit - Area 5","7011","Accommodation Costs","11/07/2016"
"Wolverhampton City Council","http://opendatacommunities.org/id/metropolitan-district-council/wolverhampton","REDWINGS LODGE","255.77","CIN/CP S17 SW Unit - Area 3A","7011","Financial Assistance In Exceptional Circ","11/07/2016"
"Wolverhampton City Council","http://opendatacommunities.org/id/metropolitan-district-council/wolverhampton","POST OFFICE COUNTER","119.00","Inclusion Support","9402","Comms - Postage","08/07/2016"
"Wolverhampton City Council","http://opendatacommunities.org/id/metropolitan-district-council/wolverhampton","TAXI FARE BY VERIFONE","13.64","Headstart","4121","Client Transport","08/07/2016"
"Wolverhampton City Council","http://opendatacommunities.org/id/metropolitan-district-council/wolverhampton","POUNDWORLD RETAIL","10.00","Environmental Health - Pub Prot - Gen","5310","Equipment - Purchase","08/07/2016"
"Wolverhampton City Council","http://opendatacommunities.org/id/metropolitan-district-council/wolverhampton","PREMIER INN","205.50","Headstart","3811","Services - Supplies & Services to users","08/07/2016"
"Wolverhampton City Council","http://opendatacommunities.org/id/metropolitan-district-council/wolverhampton","Virgintrains.co.uk","33.20","Corporate Procurement Unit","4112","Public Transport","08/07/2016"
"Wolverhampton City Council","http://opendatacommunities.org/id/metropolitan-district-council/wolverhampton","ASDA SUPERSTORE","275.80","LAC Transitions Team","5411","Client Allowances","08/07/2016"
"Wolverhampton City Council","http://opendatacommunities.org/id/metropolitan-district-council/wolverhampton","ARGOS LTD","316.66","LAC Transitions Team","5310","Client Allowances","08/07/2016"
"Wolverhampton City Council","http://opendatacommunities.org/id/metropolitan-district-council/wolverhampton","GRO HM PASSPORT OFFICE","-9.25","LAC Transitions Team","9399","Services - Fees and Charges","08/07/2016"
"Wolverhampton City Council","http://opendatacommunities.org/id/metropolitan-district-council/wolverhampton","Amazon UK Marketplace","390.52","Environmental Health - Pub Prot - Gen","5942","Equipment - Purchase","08/07/2016"
"Wolverhampton City Council","http://opendatacommunities.org/id/metropolitan-district-council/wolverhampton","DULUX DEC CENTRE","303.82","NHM Wildlife Photographer of the Year","5719","Materials","08/07/2016"
"Wolverhampton City Council","http://opendatacommunities.org/id/metropolitan-district-council/wolverhampton","TRAINLINE","86.19","Service Director Older People","4112","Public Transport","08/07/2016"
"Wolverhampton City Council","http://opendatacommunities.org/id/metropolitan-district-council/wolverhampton","Amazon UK Marketplace","40.44","Management Support","5942","Equipment - Purchase","08/07/2016"
"Wolverhampton City Council","http://opendatacommunities.org/id/metropolitan-district-council/wolverhampton","WOLVERHAMPTON CITY COU","21.00","Blakenhall Commty & Healthy Living Ctr","9399","Services - Fees and Charges","08/07/2016"
"Wolverhampton City Council","http://opendatacommunities.org/id/metropolitan-district-council/wolverhampton","HERMITAGE HOTEL","545.04","Delivery & OCE Development","7011","Services - Supplies & Services to users","08/07/2016"
"Wolverhampton City Council","http://opendatacommunities.org/id/metropolitan-district-council/wolverhampton","INPRINT LITHO LTD","535.00","Technical Support","2741","Publications","07/07/2016"
"Wolverhampton City Council","http://opendatacommunities.org/id/metropolitan-district-council/wolverhampton","M-R-S COMMUNICATIONS L","624.00","Civic Halls Non Direct Management A/C","5046","Equipment - Purchase","07/07/2016"
"Wolverhampton City Council","http://opendatacommunities.org/id/metropolitan-district-council/wolverhampton","MARKS&SPENCER PLC SACA","50.83","Mayoral Expenses","5411","Hospitality","07/07/2016"
"Wolverhampton City Council","http://opendatacommunities.org/id/metropolitan-district-council/wolverhampton","POST OFFICE COUNTER","58.75","LAC Team","9402","Comms - Postage","07/07/2016"
"Wolverhampton City Council","http://opendatacommunities.org/id/metropolitan-district-council/wolverhampton","WWW.THEBARCODEWAREHOUS","230.00","College of Further Education","5722","Computing - Purchase of Hardware","07/07/2016"
"Wolverhampton City Council","http://opendatacommunities.org/id/metropolitan-district-council/wolverhampton","ASDA HOME SHOPPING","-0.77","Upper Pendeford Farm Childrens Home","5411","Provisions (Not for resale)","07/07/2016"
"Wolverhampton City Council","http://opendatacommunities.org/id/metropolitan-district-council/wolverhampton","NOTEMACHINE","250.00","CIN/CP S17 SW Unit - Area 6","6011","Financial Assistance In Exceptional Circ","07/07/2016"
"Wolverhampton City Council","http://opendatacommunities.org/id/metropolitan-district-council/wolverhampton","O E METCALFE","608.60","Towers Outdoor Education Centre","5499","Catering","07/07/2016"
"Wolverhampton City Council","http://opendatacommunities.org/id/metropolitan-district-council/wolverhampton","REDWINGS LODGE","320.54","CIN/CP S17 SW Unit - Area 5","7011","Accommodation Costs","07/07/2016"
"Wolverhampton City Council","http://opendatacommunities.org/id/metropolitan-district-council/wolverhampton","REDWINGS LODGE","18.65","CIN/CP S17 SW Unit - Area 5","7011","Catering","07/07/2016"
"Wolverhampton City Council","http://opendatacommunities.org/id/metropolitan-district-council/wolverhampton","WWW.REDWINGSLODGEB","129.90","CIN/CP S17 SW Unit - Area 3B","7011","Services - Supplies & Services to users","07/07/2016"
"Wolverhampton City Council","http://opendatacommunities.org/id/metropolitan-district-council/wolverhampton","MARKS&SPENCER PLC SACA","31.13","Big Ceramics","5411","Provisions (Not for resale)","07/07/2016"
"Wolverhampton City Council","http://opendatacommunities.org/id/metropolitan-district-council/wolverhampton","POST OFFICE COUNTER","58.75","LAC Team","9402","Comms - Postage","07/07/2016"
"Wolverhampton City Council","http://opendatacommunities.org/id/metropolitan-district-council/wolverhampton","Amazon UK Marketplace","47.27","WV Active Business Support","5942","Equipment - Purchase","07/07/2016"
"Wolverhampton City Council","http://opendatacommunities.org/id/metropolitan-district-council/wolverhampton","ARGOS RETAIL GROUP","198.93","CIN/CP S17 SW Unit - Area 3B","5310","Equipment - Purchase","07/07/2016"
"Wolverhampton City Council","http://opendatacommunities.org/id/metropolitan-district-council/wolverhampton","TRFSA   THOMSONREUTERS","72.00","Legal Services","8999","Services - Professional Fees","07/07/2016"
"Wolverhampton City Council","http://opendatacommunities.org/id/metropolitan-district-council/wolverhampton","Cross Country","33.20","Transformation","4112","Public Transport","07/07/2016"
"Wolverhampton City Council","http://opendatacommunities.org/id/metropolitan-district-council/wolverhampton","Virgintrains.co.uk","89.60","Communications & Marketing - General","4112","Public Transport","07/07/2016"
"Wolverhampton City Council","http://opendatacommunities.org/id/metropolitan-district-council/wolverhampton","ASDA SUPERSTORE","100.00","CIN/CP S17 SW Unit - Area 3B","5411","Provisions (Not for resale)","07/07/2016"
"Wolverhampton City Council","http://opendatacommunities.org/id/metropolitan-district-council/wolverhampton","ASDA SUPERSTORE","180.00","CIN/CP S17 SW Unit - Area 3B","5411","Provisions (Not for resale)","07/07/2016"
"Wolverhampton City Council","http://opendatacommunities.org/id/metropolitan-district-council/wolverhampton","ASDA HOME SHOPPING","234.35","Upper Pendeford Farm Childrens Home","5411","Provisions (Not for resale)","07/07/2016"
"Wolverhampton City Council","http://opendatacommunities.org/id/metropolitan-district-council/wolverhampton","ARGOS RETAIL GROUP","54.99","CIN/CP S17 SW Unit - Area 3B","5310","Equipment - Purchase","07/07/2016"
"Wolverhampton City Council","http://opendatacommunities.org/id/metropolitan-district-council/wolverhampton","WATERSTONES","50.00","Art Gallery","5942","Books","07/07/2016"
"Wolverhampton City Council","http://opendatacommunities.org/id/metropolitan-district-council/wolverhampton","ASDA SUPERSTORE","30.45","Civic Centre Catering","5411","Provisions (Not for resale)","07/07/2016"
"Wolverhampton City Council","http://opendatacommunities.org/id/metropolitan-district-council/wolverhampton","CBT NUGGETS","3509.66","Customer Services","8244","Training Expenses","07/07/2016"
"Wolverhampton City Council","http://opendatacommunities.org/id/metropolitan-district-council/wolverhampton","WAITROSE 696","15.36","CIN/CP S17 SW Unit - Area 3A","5411","Comms - Postage","07/07/2016"
"Wolverhampton City Council","http://opendatacommunities.org/id/metropolitan-district-council/wolverhampton","PAYPAL  BUNZLRETAIL","68.62","Ernest Bold Court","5047","Services - Professional Fees","07/07/2016"
"Wolverhampton City Council","http://opendatacommunities.org/id/metropolitan-district-council/wolverhampton","TRAINLINE","18.92","SEN Special Education Admin","4112","Public Transport","07/07/2016"
"Wolverhampton City Council","http://opendatacommunities.org/id/metropolitan-district-council/wolverhampton","CO-OP GROUP PETROL","6.00","Ernest Bold Court","5541","Provisions (Not for resale)","07/07/2016"
"Wolverhampton City Council","http://opendatacommunities.org/id/metropolitan-district-council/wolverhampton","REDWINGS LODGE","9.50","CIN/CP S17 SW Unit - Area 7","7011","Services - Supplies & Services to users","07/07/2016"
"Wolverhampton City Council","http://opendatacommunities.org/id/metropolitan-district-council/wolverhampton","TRAINLINE","135.25","Adoption and Residence Team & Allowances","4112","Public Transport","07/07/2016"
"Wolverhampton City Council","http://opendatacommunities.org/id/metropolitan-district-council/wolverhampton","Virgintrains.co.uk","169.90","LAC Team","4112","Public Transport","06/07/2016"
"Wolverhampton City Council","http://opendatacommunities.org/id/metropolitan-district-council/wolverhampton","FACEBOOK ZYXN99WA92","593.59","Communications & Marketing - General","7311","Marketing \ Non-staff advertising","06/07/2016"
"Wolverhampton City Council","http://opendatacommunities.org/id/metropolitan-district-council/wolverhampton","NHS SBS","39.60","CIN/CP Social Work Unit - Area 6","9399","Services - Fees and Charges","06/07/2016"
"Wolverhampton City Council","http://opendatacommunities.org/id/metropolitan-district-council/wolverhampton","Amazon EU","25.98","EIP Locality 1","5969","Equipment - Purchase","06/07/2016"
"Wolverhampton City Council","http://opendatacommunities.org/id/metropolitan-district-council/wolverhampton","BARCLAYS BANK PLC","240.00","CIN/CP S17 SW Unit - Area 5","6011","Financial Assistance In Exceptional Circ","06/07/2016"
"Wolverhampton City Council","http://opendatacommunities.org/id/metropolitan-district-council/wolverhampton","ARGOS RETAIL GROUP","43.94","Upper Pendeford Farm Childrens Home","5310","Equipment - Purchase","06/07/2016"
"Wolverhampton City Council","http://opendatacommunities.org/id/metropolitan-district-council/wolverhampton","REDWINGS LODGE","21.65","CIN/CP S17 SW Unit - Area 5","7011","Catering","06/07/2016"
"Wolverhampton City Council","http://opendatacommunities.org/id/metropolitan-district-council/wolverhampton","PAYPAL  CARLTONASSO","45.00","WV Active Business Support","8220","Training Expenses","06/07/2016"
"Wolverhampton City Council","http://opendatacommunities.org/id/metropolitan-district-council/wolverhampton","HOTEL DE GUIMARAES","348.88","Learning Technologies","7011","Services - Supplies & Services to users","06/07/2016"
"Wolverhampton City Council","http://opendatacommunities.org/id/metropolitan-district-council/wolverhampton","Virgintrains.co.uk","48.05","Members Expenses","4112","Public Transport","06/07/2016"
"Wolverhampton City Council","http://opendatacommunities.org/id/metropolitan-district-council/wolverhampton","E.ON ENERGY SOLUTIONS","200.00","CIN/CP S17 SW Unit - Area 5","4900","Electricity","06/07/2016"
"Wolverhampton City Council","http://opendatacommunities.org/id/metropolitan-district-council/wolverhampton","SYM SECURE SITE SSL","259.00","College of Further Education","4816","Computing - Purchase of Software","06/07/2016"
"Wolverhampton City Council","http://opendatacommunities.org/id/metropolitan-district-council/wolverhampton","Virgintrains.co.uk","31.00","Members Expenses","4112","Public Transport","06/07/2016"
"Wolverhampton City Council","http://opendatacommunities.org/id/metropolitan-district-council/wolverhampton","NAMESCO","12.00","City Direct","4816","Computing - Purchase of Software","06/07/2016"
"Wolverhampton City Council","http://opendatacommunities.org/id/metropolitan-district-council/wolverhampton","G & M HALE (SUNDRIES)","32.25","Creative Studies Delivery Area","5992","Materials for resale","06/07/2016"
"Wolverhampton City Council","http://opendatacommunities.org/id/metropolitan-district-council/wolverhampton","Amazon UK Marketplace","2.83","Global Budgets","5942","Books","06/07/2016"
"Wolverhampton City Council","http://opendatacommunities.org/id/metropolitan-district-council/wolverhampton","REDWINGS LODGE","158.21","CIN/CP S17 SW Unit - Area 5","7011","Accommodation Costs","06/07/2016"
"Wolverhampton City Council","http://opendatacommunities.org/id/metropolitan-district-council/wolverhampton","FACEBOOK 2ZXN99WA92","6.44","Communications & Marketing - General","7311","Marketing \ Non-staff advertising","06/07/2016"
"Wolverhampton City Council","http://opendatacommunities.org/id/metropolitan-district-council/wolverhampton","EBUYER (UK) LTD","10.00","Technical Support","5722","Comms - Postage","06/07/2016"
"Wolverhampton City Council","http://opendatacommunities.org/id/metropolitan-district-council/wolverhampton","G & M HALE LTD","31.60","Creative Studies Delivery Area","5992","Materials for resale","06/07/2016"
"Wolverhampton City Council","http://opendatacommunities.org/id/metropolitan-district-council/wolverhampton","Cross Country","75.60","Mental Health Assessment & Care Mgmt","4112","Public Transport","06/07/2016"
"Wolverhampton City Council","http://opendatacommunities.org/id/metropolitan-district-council/wolverhampton","TESCO STORES 5194","248.79","Towers Outdoor Education Centre","5411","Provisions (Not for resale)","06/07/2016"
"Wolverhampton City Council","http://opendatacommunities.org/id/metropolitan-district-council/wolverhampton","SURVEYMONKEY.COM","249.17","Technical Support","4816","Subscriptions","06/07/2016"
"Wolverhampton City Council","http://opendatacommunities.org/id/metropolitan-district-council/wolverhampton","Virgintrains.co.uk","-8.50","LAC Team","4112","Public Transport","05/07/2016"
"Wolverhampton City Council","http://opendatacommunities.org/id/metropolitan-district-council/wolverhampton","TRAINLINE","112.71","Health Protection & NHS Facing","4112","Public Transport","05/07/2016"
"Wolverhampton City Council","http://opendatacommunities.org/id/metropolitan-district-council/wolverhampton","WOLVES CC","83.64","CIN/CP S17 SW Unit - Area 5","9399","Services - Fees and Charges","05/07/2016"
"Wolverhampton City Council","http://opendatacommunities.org/id/metropolitan-district-council/wolverhampton","WWW.HOBARTUK.CO.UK","-258.17","Towers Outdoor Education Centre","5722","Fixtures and Fittings - Purchases","05/07/2016"
"Wolverhampton City Council","http://opendatacommunities.org/id/metropolitan-district-council/wolverhampton","WM MORRISONS","14.54","Upper Pendeford Farm Childrens Home","5411","Provisions (Not for resale)","05/07/2016"
"Wolverhampton City Council","http://opendatacommunities.org/id/metropolitan-district-council/wolverhampton","Amazon EU","58.32","Licensing - General","5969","Equipment - Purchase","05/07/2016"
"Wolverhampton City Council","http://opendatacommunities.org/id/metropolitan-district-council/wolverhampton","WOLVES CC","88.00","CIN/CP S17 SW Unit - Area 5","9399","Services - Fees and Charges","05/07/2016"
"Wolverhampton City Council","http://opendatacommunities.org/id/metropolitan-district-council/wolverhampton","ASDA HOME SHOPPING","87.98","Ernest Bold Court","5411","Provisions (Not for resale)","05/07/2016"
"Wolverhampton City Council","http://opendatacommunities.org/id/metropolitan-district-council/wolverhampton","Amazon EU","58.32","Licensing - General","5969","Equipment - Purchase","05/07/2016"
"Wolverhampton City Council","http://opendatacommunities.org/id/metropolitan-district-council/wolverhampton","Amazon UK Marketplace","7.57","Towers Outdoor Education Centre","5942","Books","05/07/2016"
"Wolverhampton City Council","http://opendatacommunities.org/id/metropolitan-district-council/wolverhampton","SAINSBURYS (2340)","14.73","Mayoral Expenses","5411","Hospitality","05/07/2016"
"Wolverhampton City Council","http://opendatacommunities.org/id/metropolitan-district-council/wolverhampton","WOOLCOTT REMOVALS LTD","255.00","CIN/CP S17 SW Unit - Area 4","4214","Services - Fees and Charges","05/07/2016"
"Wolverhampton City Council","http://opendatacommunities.org/id/metropolitan-district-council/wolverhampton","WWW.REDWINGSLODGEB","94.90","CIN/CP S17 SW Unit - Area 3B","7011","Services - Supplies & Services to users","05/07/2016"
"Wolverhampton City Council","http://opendatacommunities.org/id/metropolitan-district-council/wolverhampton","REDWINGS LODGE","20.00","CIN/CP S17 SW Unit - Area 5","7011","Catering","05/07/2016"
"Wolverhampton City Council","http://opendatacommunities.org/id/metropolitan-district-council/wolverhampton","WOLVES CC","120.00","CIN/CP S17 SW Unit - Area 5","9399","Services - Fees and Charges","05/07/2016"
"Wolverhampton City Council","http://opendatacommunities.org/id/metropolitan-district-council/wolverhampton","Amazon UK Marketplace","15.81","Global Budgets","5942","Books","05/07/2016"
"Wolverhampton City Council","http://opendatacommunities.org/id/metropolitan-district-council/wolverhampton","RED BOX SAFETY SOLUTIO","20.89","Central Baths","5999","Equipment - Purchase","05/07/2016"
"Wolverhampton City Council","http://opendatacommunities.org/id/metropolitan-district-council/wolverhampton","REDWINGS LODGE","399.65","CIN/CP S17 SW Unit - Area 7","7011","Services - Supplies & Services to users","05/07/2016"
"Wolverhampton City Council","http://opendatacommunities.org/id/metropolitan-district-council/wolverhampton","BOOKWHEN","9.00","Craftplay","7372","Computing - Purchase of Software","05/07/2016"
"Wolverhampton City Council","http://opendatacommunities.org/id/metropolitan-district-council/wolverhampton","SAIN WEDNESFIELD","50.00","Duke Street Bungalows","6011","Financial Assistance In Exceptional Circ","05/07/2016"
"Wolverhampton City Council","http://opendatacommunities.org/id/metropolitan-district-council/wolverhampton","SAIN WEDNESFIELD","50.00","Duke Street Bungalows","6011","Financial Assistance In Exceptional Circ","05/07/2016"
"Wolverhampton City Council","http://opendatacommunities.org/id/metropolitan-district-council/wolverhampton","GRO HM PASSPORT OFFICE","140.40","CIN/CP S17 SW Unit - Area 8","9399","Services - Fees and Charges","05/07/2016"
"Wolverhampton City Council","http://opendatacommunities.org/id/metropolitan-district-council/wolverhampton","SCREWFIX DIRECT","82.24","Technician","5211","Materials","05/07/2016"
"Wolverhampton City Council","http://opendatacommunities.org/id/metropolitan-district-council/wolverhampton","WWW.FITNESS-SUPERSTORE","19.95","Aldersley Leisure Village","5941","Equipment - Purchase","05/07/2016"
"Wolverhampton City Council","http://opendatacommunities.org/id/metropolitan-district-council/wolverhampton","SAIN WEDNESFIELD","50.00","Duke Street Bungalows","6011","Financial Assistance In Exceptional Circ","05/07/2016"
"Wolverhampton City Council","http://opendatacommunities.org/id/metropolitan-district-council/wolverhampton","SPEEDY ASSET SRVCS","-44.40","Leonardo Da Vinci Project","7394","Equipment - Purchase","05/07/2016"
"Wolverhampton City Council","http://opendatacommunities.org/id/metropolitan-district-council/wolverhampton","Amazon UK Marketplace","19.91","Expenditure","5942","Books","05/07/2016"
"Wolverhampton City Council","http://opendatacommunities.org/id/metropolitan-district-council/wolverhampton","ASDA HOME SHOPPING","-0.75","Ernest Bold Court","5411","Provisions (Not for resale)","05/07/2016"
"Wolverhampton City Council","http://opendatacommunities.org/id/metropolitan-district-council/wolverhampton","REDWINGS LODGE","7.95","CIN/CP S17 SW Unit - Area 5","7011","Catering","05/07/2016"
"Wolverhampton City Council","http://opendatacommunities.org/id/metropolitan-district-council/wolverhampton","CUMMINGS BROTHERS LOCK","29.17","Statutory Services (10RM)","7399","R&M - Departmental planned (external)","04/07/2016"
"Wolverhampton City Council","http://opendatacommunities.org/id/metropolitan-district-council/wolverhampton","REDWINGS LODGE","2.25","CIN/CP S17 SW Unit - Area 5","7011","Catering","04/07/2016"
"Wolverhampton City Council","http://opendatacommunities.org/id/metropolitan-district-council/wolverhampton","AMAZON UK RETAIL AMAZO","10.27","Global Budgets","5999","Books","04/07/2016"
"Wolverhampton City Council","http://opendatacommunities.org/id/metropolitan-district-council/wolverhampton","AMAZON UK RETAIL AMAZO","15.03","Inclusion Support","5999","Equipment - Purchase","04/07/2016"
"Wolverhampton City Council","http://opendatacommunities.org/id/metropolitan-district-council/wolverhampton","CUMMINGS BROTHERS LOCK","21.67","Caretakers Community Centre","7399","R&M - Departmental planned (external)","04/07/2016"
"Wolverhampton City Council","http://opendatacommunities.org/id/metropolitan-district-council/wolverhampton","INTERFLORA BRITISH UNI","28.98","Fostering Team & Allowances","5992","Equipment - Purchase","04/07/2016"
"Wolverhampton City Council","http://opendatacommunities.org/id/metropolitan-district-council/wolverhampton","Amazon EU","15.03","Inclusion Support","5969","Equipment - Purchase","04/07/2016"
"Wolverhampton City Council","http://opendatacommunities.org/id/metropolitan-district-council/wolverhampton","TRAINLINE","195.74","SEN Early Years Team","4112","Public Transport","04/07/2016"
"Wolverhampton City Council","http://opendatacommunities.org/id/metropolitan-district-council/wolverhampton","Amazon EU","9.98","Global Budgets","5969","Books","04/07/2016"
"Wolverhampton City Council","http://opendatacommunities.org/id/metropolitan-district-council/wolverhampton","A F BLAKEMORE & SON LT","20.48","Mayoral Expenses","5411","Hospitality","04/07/2016"
"Wolverhampton City Council","http://opendatacommunities.org/id/metropolitan-district-council/wolverhampton","REGISTRARS OFFICE","90.00","Head of Service - CINCP","8299","Services - Professional Fees","04/07/2016"
"Wolverhampton City Council","http://opendatacommunities.org/id/metropolitan-district-council/wolverhampton","FTPE WEBTIS 1","32.00","LAC Transitions Team","4112","Client Allowances","04/07/2016"
"Wolverhampton City Council","http://opendatacommunities.org/id/metropolitan-district-council/wolverhampton","ASDA HOME SHOPPING","99.08","Ernest Bold Court","5411","Provisions (Not for resale)","04/07/2016"
"Wolverhampton City Council","http://opendatacommunities.org/id/metropolitan-district-council/wolverhampton","INTERFLORA BRITISH UNI","28.98","Fostering Team & Allowances","5992","Equipment - Purchase","04/07/2016"
"Wolverhampton City Council","http://opendatacommunities.org/id/metropolitan-district-council/wolverhampton","WWW.MAPLIN.CO.UK","91.66","Music Support Team","5732","Equipment - Purchase","04/07/2016"
"Wolverhampton City Council","http://opendatacommunities.org/id/metropolitan-district-council/wolverhampton","REDWINGS LODGE","22.95","CIN/CP S17 SW Unit - Area 5","7011","Catering","04/07/2016"
"Wolverhampton City Council","http://opendatacommunities.org/id/metropolitan-district-council/wolverhampton","REDWINGS LODGE","28.05","CIN/CP S17 SW Unit - Area 5","7011","Catering","04/07/2016"
"Wolverhampton City Council","http://opendatacommunities.org/id/metropolitan-district-council/wolverhampton","TRELLO","3.86","City Direct","5045","Computing - Purchase of Hardware","04/07/2016"
"Wolverhampton City Council","http://opendatacommunities.org/id/metropolitan-district-council/wolverhampton","CUMMINGS BROTHERS LOCK","70.83","Caretakers Community Centre","7399","R&M - Departmental planned (external)","04/07/2016"
"Wolverhampton City Council","http://opendatacommunities.org/id/metropolitan-district-council/wolverhampton","BRITANNIA","97.50","CIN/CP S17 SW Unit - Area 8","7011","Services - Supplies & Services to users","04/07/2016"
"Wolverhampton City Council","http://opendatacommunities.org/id/metropolitan-district-council/wolverhampton","REDWINGS LODGE","224.79","CIN/CP S17 SW Unit - Area 5","7011","Accommodation Costs","04/07/2016"
"Wolverhampton City Council","http://opendatacommunities.org/id/metropolitan-district-council/wolverhampton","CUMMINGS BROTHERS LOCK","4.17","Caretakers Community Centre","7399","R&M - Departmental planned (external)","04/07/2016"
"Wolverhampton City Council","http://opendatacommunities.org/id/metropolitan-district-council/wolverhampton","B & Q 1243","94.71","LAC Transitions Team","5211","Client Allowances","04/07/2016"
"Wolverhampton City Council","http://opendatacommunities.org/id/metropolitan-district-council/wolverhampton","ASDA HOME SHOPPING","-1.09","Ernest Bold Court","5411","Provisions (Not for resale)","04/07/2016"
"Wolverhampton City Council","http://opendatacommunities.org/id/metropolitan-district-council/wolverhampton","HUGHES","416.67","LAC Transitions Team","5732","Client Allowances","04/07/2016"
"Wolverhampton City Council","http://opendatacommunities.org/id/metropolitan-district-council/wolverhampton","TEX MEADOWVALEGAR","89.97","Towers Outdoor Education Centre","5541","Petrol","04/07/2016"
"Wolverhampton City Council","http://opendatacommunities.org/id/metropolitan-district-council/wolverhampton","CENTURY ELECTRICAL WHO","38.75","Cleaning of Buildings - General","5065","Equipment - R & M","04/07/2016"
"Wolverhampton City Council","http://opendatacommunities.org/id/metropolitan-district-council/wolverhampton","SAINSBURYS (2340)","1.48","Mayoral Expenses","5411","Hospitality","04/07/2016"
"Wolverhampton City Council","http://opendatacommunities.org/id/metropolitan-district-council/wolverhampton","DUDLEY MET CNL ATP","122.28","Music Support Team","7999","Services - Professional Fees","04/07/2016"
"Wolverhampton City Council","http://opendatacommunities.org/id/metropolitan-district-council/wolverhampton","REDWINGS LODGE","14.90","CIN/CP S17 SW Unit - Area 5","7011","Catering","04/07/2016"
"Wolverhampton City Council","http://opendatacommunities.org/id/metropolitan-district-council/wolverhampton","AMAZON UK RETAIL AMAZO","15.03","Inclusion Support","5999","Equipment - Purchase","04/07/2016"
"Wolverhampton City Council","http://opendatacommunities.org/id/metropolitan-district-council/wolverhampton","TRAINLINE","294.27","Audit Services","4112","Public Transport","04/07/2016"
"Wolverhampton City Council","http://opendatacommunities.org/id/metropolitan-district-council/wolverhampton","NATWEST BANK","200.00","Democratic Support","6011","Public Transport","04/07/2016"
"Wolverhampton City Council","http://opendatacommunities.org/id/metropolitan-district-council/wolverhampton","REDWINGS LODGE","21.15","CIN/CP S17 SW Unit - Area 5","7011","Catering","04/07/2016"
"Wolverhampton City Council","http://opendatacommunities.org/id/metropolitan-district-council/wolverhampton","TRAINLINE","82.11","Electoral Registration","4112","Public Transport","04/07/2016"
"Wolverhampton City Council","http://opendatacommunities.org/id/metropolitan-district-council/wolverhampton","WWW.STAPLES.CO.UK","87.92","Towers Outdoor Education Centre","5943","Stationery","04/07/2016"
"Wolverhampton City Council","http://opendatacommunities.org/id/metropolitan-district-council/wolverhampton","INTERFLORA BRITISH UNI","28.98","Fostering Team & Allowances","5992","Equipment - Purchase","04/07/2016"
"Wolverhampton City Council","http://opendatacommunities.org/id/metropolitan-district-council/wolverhampton","Amazon UK Marketplace","14.98","Music Support Team","5942","Equipment - Purchase","04/07/2016"
"Wolverhampton City Council","http://opendatacommunities.org/id/metropolitan-district-council/wolverhampton","FTPE WEBTIS 1","51.30","School Improvement","4112","Public Transport","04/07/2016"
"Wolverhampton City Council","http://opendatacommunities.org/id/metropolitan-district-council/wolverhampton","Virgintrains.co.uk","81.40","Strategic Asset Management - General","4112","Public Transport","04/07/2016"
"Wolverhampton City Council","http://opendatacommunities.org/id/metropolitan-district-council/wolverhampton","REDWINGS LODGE","7.95","CIN/CP S17 SW Unit - Area 5","7011","Catering","04/07/2016"
"Wolverhampton City Council","http://opendatacommunities.org/id/metropolitan-district-council/wolverhampton","TRAINLINE","195.74","SEN Special Education Admin","4112","Public Transport","04/07/2016"
"Wolverhampton City Council","http://opendatacommunities.org/id/metropolitan-district-council/wolverhampton","TESCO STORE 2836","77.48","Towers Outdoor Education Centre","5411","Provisions (Not for resale)","04/07/2016"
"Wolverhampton City Council","http://opendatacommunities.org/id/metropolitan-district-council/wolverhampton","Amazon EU","15.03","Inclusion Support","5969","Equipment - Purchase","04/07/2016"
"Wolverhampton City Council","http://opendatacommunities.org/id/metropolitan-district-council/wolverhampton","POLICY PRESS AT UOB","9.39","Planning","5192","Books","04/07/2016"
"Wolverhampton City Council","http://opendatacommunities.org/id/metropolitan-district-council/wolverhampton","LIDL UK","6.88","Discretionary Fund","5411","Materials","04/07/2016"
"Wolverhampton City Council","http://opendatacommunities.org/id/metropolitan-district-council/wolverhampton","HUGHES","416.67","LAC Transitions Team","5732","Client Allowances","04/07/2016"
"Wolverhampton City Council","http://opendatacommunities.org/id/metropolitan-district-council/wolverhampton","ARGOS LTD","20.82","Cemeteries","5310","Equipment - Purchase","04/07/2016"
"Wolverhampton City Council","http://opendatacommunities.org/id/metropolitan-district-council/wolverhampton","REDWINGS LODGE","179.85","CIN/CP S17 SW Unit - Area 7","7011","Services - Supplies & Services to users","04/07/2016"
"Wolverhampton City Council","http://opendatacommunities.org/id/metropolitan-district-council/wolverhampton","WWW.CATALOGUE.WLPVP.CO","40.80","Archives","5964","Equipment - Purchase","04/07/2016"
"Wolverhampton City Council","http://opendatacommunities.org/id/metropolitan-district-council/wolverhampton","WEST MID TRAVEL","829.10","Banking","4131","Public Transport","04/07/2016"
"Wolverhampton City Council","http://opendatacommunities.org/id/metropolitan-district-council/wolverhampton","REDWINGS LODGE","28.45","CIN/CP S17 SW Unit - Area 5","7011","Catering","04/07/2016"
"Wolverhampton City Council","http://opendatacommunities.org/id/metropolitan-district-council/wolverhampton","CARESHOP","130.05","Specialist Support Service - North","5999","Cleaning Supplies and Materials","01/07/2016"
"Wolverhampton City Council","http://opendatacommunities.org/id/metropolitan-district-council/wolverhampton","AMAZON UK RETAIL AMAZO","56.05","LAC Transitions Team","5999","Client Allowances","01/07/2016"
"Wolverhampton City Council","http://opendatacommunities.org/id/metropolitan-district-council/wolverhampton","REDWINGS LODGE","19.40","CIN/CP S17 SW Unit - Area 5","7011","Catering","01/07/2016"
"Wolverhampton City Council","http://opendatacommunities.org/id/metropolitan-district-council/wolverhampton","ACT The Conference Peo","75.00","Social Work Qualifying Training","7399","Training Expenses","01/07/2016"
"Wolverhampton City Council","http://opendatacommunities.org/id/metropolitan-district-council/wolverhampton","ARGOS LTD","195.82","LAC Transitions Team","5310","Client Allowances","01/07/2016"
"Wolverhampton City Council","http://opendatacommunities.org/id/metropolitan-district-council/wolverhampton","HERON FOODS LTD","26.78","Mayoral Expenses","5499","Hospitality","01/07/2016"
"Wolverhampton City Council","http://opendatacommunities.org/id/metropolitan-district-council/wolverhampton","CARESHOP","200.00","Specialist Support Service - North","5999","Cleaning Supplies and Materials","01/07/2016"
"Wolverhampton City Council","http://opendatacommunities.org/id/metropolitan-district-council/wolverhampton","AMAZON UK RETAIL AMAZO","27.42","Fostering Team & Allowances","5999","Equipment - Purchase","01/07/2016"
"Wolverhampton City Council","http://opendatacommunities.org/id/metropolitan-district-council/wolverhampton","ASDA SUPERSTORE","12.50","Ernest Bold Court","5411","Fixtures and Fittings - Purchases","01/07/2016"
"Wolverhampton City Council","http://opendatacommunities.org/id/metropolitan-district-council/wolverhampton","ACT The Conference Peo","75.00","Social Work Qualifying Training","7399","Training Expenses","01/07/2016"
"Wolverhampton City Council","http://opendatacommunities.org/id/metropolitan-district-council/wolverhampton","REDWINGS LODGE","24.10","CIN/CP S17 SW Unit - Area 5","7011","Catering","01/07/2016"
"Wolverhampton City Council","http://opendatacommunities.org/id/metropolitan-district-council/wolverhampton","FACEBOOK H2NA496B92","575.18","Communications & Marketing - General","7311","Marketing \ Non-staff advertising","01/07/2016"
"Wolverhampton City Council","http://opendatacommunities.org/id/metropolitan-district-council/wolverhampton","THE POST OFFICE","5.50","Northicote Farm","9402","Comms - Postage","01/07/2016"
"Wolverhampton City Council","http://opendatacommunities.org/id/metropolitan-district-council/wolverhampton","B & Q 1243","22.50","Bilston Town Hall","5211","R&M - Departmental planned (external)","01/07/2016"
"Wolverhampton City Council","http://opendatacommunities.org/id/metropolitan-district-council/wolverhampton","REDWINGS LODGE","41.62","CIN/CP S17 SW Unit - Area 5","7011","Accommodation Costs","01/07/2016"
"Wolverhampton City Council","http://opendatacommunities.org/id/metropolitan-district-council/wolverhampton","FACEBOOK 7LCD396F92","135.89","Art Gallery","7311","Marketing \ Non-staff advertising","01/07/2016"
"Wolverhampton City Council","http://opendatacommunities.org/id/metropolitan-district-council/wolverhampton","REDWINGS LODGE","49.95","CIN/CP S17 SW Unit - Area 7","7011","Services - Supplies & Services to users","01/07/2016"
"Wolverhampton City Council","http://opendatacommunities.org/id/metropolitan-district-council/wolverhampton","AA MOTOR INSURANCE","301.97","Delivery & OCE Development","6300","Services - Supplies & Services to users","01/07/2016"
"Wolverhampton City Council","http://opendatacommunities.org/id/metropolitan-district-council/wolverhampton","CT WOLVERHAMPTON","85.00","CIN/CP S17 SW Unit - Area 5","8398","Furniture","01/07/2016"
"Wolverhampton City Council","http://opendatacommunities.org/id/metropolitan-district-council/wolverhampton","WWW.HXPAYMENTS.COM","187.31","Learning Technologies","4722","Public Transport","01/07/2016"
"Wolverhampton City Council","http://opendatacommunities.org/id/metropolitan-district-council/wolverhampton","FACEBOOK K2NA496B92","2.15","Communications & Marketing - General","7311","Marketing \ Non-staff advertising","01/07/2016"
"Wolverhampton City Council","http://opendatacommunities.org/id/metropolitan-district-council/wolverhampton","CARESHOP","205.85","Specialist Support Service - North","5999","Cleaning Supplies and Materials","01/07/2016"
"Wolverhampton City Council","http://opendatacommunities.org/id/metropolitan-district-council/wolverhampton","WOLVES CC","441.44","CIN/CP S17 SW Unit - Area 4","9399","No Recourse to Public Funds","01/07/2016"
"Wolverhampton City Council","http://opendatacommunities.org/id/metropolitan-district-council/wolverhampton","ACT The Conference Peo","75.00","Social Work Qualifying Training","7399","Training Expenses","01/07/2016"
"Wolverhampton City Council","http://opendatacommunities.org/id/metropolitan-district-council/wolverhampton","REDWINGS LODGE","15.90","CIN/CP S17 SW Unit - Area 5","7011","Catering","01/07/2016"
"Wolverhampton City Council","http://opendatacommunities.org/id/metropolitan-district-council/wolverhampton","RESORT WORLD BIRMINGHA","158.33","Delivery & OCE Development","5813","Educ Trips, Holidays, Outings, Activity","01/07/2016"
"Wolverhampton City Council","http://opendatacommunities.org/id/metropolitan-district-council/wolverhampton","PROJECTORPOINTCOUK","1652.40","Customer Services","5065","Equipment - R & M","01/07/2016"
"Wolverhampton City Council","http://opendatacommunities.org/id/metropolitan-district-council/wolverhampton","PC WORLD ONLINE","313.32","Towers Outdoor Education Centre","5732","Equipment - Purchase","01/07/2016"
"Wolverhampton City Council","http://opendatacommunities.org/id/metropolitan-district-council/wolverhampton","POST OFFICE COUNTER","11.00","Head of Service - CINCP","9402","Comms - Postage","01/07/2016"
"Wolverhampton City Council","http://opendatacommunities.org/id/metropolitan-district-council/wolverhampton","PAYPAL  BARNARDOS","40.00","Intensive Family Support Team","8999","Services - Professional Fees","01/07/2016"
"Wolverhampton City Council","http://opendatacommunities.org/id/metropolitan-district-council/wolverhampton","PREMIER INN","313.33","Adoption and Residence Team & Allowances","3811","Accommodation Costs","01/07/2016"
"Wolverhampton City Council","http://opendatacommunities.org/id/metropolitan-district-council/wolverhampton","ACT The Conference Peo","75.00","Social Work Qualifying Training","7399","Training Expenses","01/07/2016"
"Wolverhampton City Council","http://opendatacommunities.org/id/metropolitan-district-council/wolverhampton","FACEBOOK V2EC7AW3U2","252.49","Art Gallery","7311","Marketing \ Non-staff advertising","01/07/2016"
"Wolverhampton City Council","http://opendatacommunities.org/id/metropolitan-district-council/wolverhampton","SUITES AND BEDS","291.67","LAC Transitions Team","5712","Client Allowances","01/07/2016"
"Wolverhampton City Council","http://opendatacommunities.org/id/metropolitan-district-council/wolverhampton","FTPE WEBTIS 1","358.00","LAC Transitions Team","4112","Client Transport","01/07/2016"
"Wolverhampton City Council","http://opendatacommunities.org/id/metropolitan-district-council/wolverhampton","Amazon UK Marketplace","14.94","Customer Services","5942","Books","01/07/2016"
"Wolverhampton City Council","http://opendatacommunities.org/id/metropolitan-district-council/wolverhampton","123-REG.CO.UK","226.48","Customer Services","4816","Computing - Purchase of Software","01/07/2016"
"Wolverhampton City Council","http://opendatacommunities.org/id/metropolitan-district-council/wolverhampton","Amazon UK Marketplace","288.38","Customer Services","5942","Books","01/07/2016"
"Wolverhampton City Council","http://opendatacommunities.org/id/metropolitan-district-council/wolverhampton","REDWINGS LODGE","15.90","CIN/CP S17 SW Unit - Area 5","7011","Catering","01/07/2016"
